Cogmind - Beta 16 @@@ ROGUE MODE // 2025.10.28 @ 18:34:27 Player: C0-2MO Result: Establishing Free Derelict Territories! Performance ------------- Evolutions (9) 4500 Regions Visited (49) 9800 Robots Destroyed (192) 960 Value Destroyed (12746) 12746 Prototype IDs (104) 2080 Alien Tech Used (9) 1800 Bonus (38126) 38126 TOTAL SCORE: 70012 Bonus ------- High Alert Combat Kills 565 Follower Combat Kills 3293 Entered Garrisons 1800 Network Hubs Disabled 200 Met Data Miner 300 Acquired ECA 300 Met Warlord at Base 500 MAIN.C Attacked Warlord 500 Built Enhanced Grunts 300 A7 Reached Mainframe 300 Met R17 at Cetus 500 Met Warlord at Research 2000 Invited to Help at Command 2000 Destroyed MAIN.C Guards 500 Met MAIN.C 5000 Hacked MAIN.C 300 Destroyed MAIN.C Shell 5000 Destroyed MAIN.C 10000 Met Warlord at Command 2000 Win 3000 Friendly Fire -232 Cogmind --------- Core Integrity 1252/1850 Matter 286/300 Energy 86/600 System Corruption 6% Temperature Cool (0) Movement Core (1300) Ox25 Location Free Derelict Territories Parts ------- > --- POWER (2) -------- Improved Fusion Compressor Improved Quantum Reactor > --- PROPULSION (10) -- Field Propulsion Array Electron Diverter Improved Diametric Drive Improved Q-thruster Cooled Q-thruster > --- UTILITY (12) ----- 2N-1CE's Frost Array High-capacity Storage Unit Experimental Optical Array Experimental Signal Interpreter Experimental Melee Analysis Suite Graphene Brace Experimental EM Shield > --- WEAPON (2) ------- Core Cannon > --- INVENTORY (20) --- Micro Antimatter Reactor Large Storage Unit Experimental Sensor Array Stasis Canceller High-powered Transdimensional Reconstructor High-powered Transdimensional Reconstructor Subatomic Replicator Nova Cannon Hypervelocity Railgun Fusion Bomb Launcher Advanced Datajack Gravity Flail Peak State ------------ > --- POWER ------------ Vortex Chain Reactor > --- PROPULSION ------- Nuclear Pulse Array Electron Diverter Electron Diverter Electron Diverter Improved Diametric Drive Impulse Thruster Array Improved Q-thruster Cooled Q-thruster > --- UTILITY ---------- 2N-1CE's Frost Array High-capacity Storage Unit Advanced Quantum Shading Machine Experimental Optical Array Experimental Signal Interpreter Experimental Melee Analysis Suite Advanced Phase Shifter Improved Utility Shielding Medium Regenerative Plating Graphene Brace Thermal Barrier Experimental EM Shield > --- WEAPON ----------- Core Cannon > --- INVENTORY -------- Improved Fusion Compressor Micro Antimatter Reactor Improved Quantum Reactor Field Propulsion Array Large Storage Unit Experimental Sensor Array Stasis Canceller High-powered Transdimensional Reconstructor High-powered Transdimensional Reconstructor Subatomic Replicator Nova Cannon Hypervelocity Railgun Fusion Bomb Launcher Advanced Datajack [Rating: 235] Favorites ----------- Power Cooled Fission Core Engine Light Ion Engine Power Core Cooled Fission Core Reactor Graviton Reactor Propulsion Electron Diverter Treads Light Treads Flight Unit Electron Diverter Utility Hacking Suite Device Structural Scanner Storage Medium Storage Unit Processor Experimental Signal Interpreter Hackware Hacking Suite Protection Medium Regenerative Plating Weapon Power Maul Energy Gun Improved Medium Laser Energy Cannon Nova Cannon Ballistic Gun Advanced KE Penetrator Launcher Mini Grenade Launcher Special Weapon Mining Laser Impact Weapon Power Maul Slashing Weapon Molecular Scythe Piercing Weapon Vortex Lance Special Melee Weapon Improved Datajack Build | -11 -10 -10 -9 -9 -8 -8 -8 -8 -8 -7 -7 -7 -7 -7 -7 -7 -7 -6 -6 -6 -6 -6 -6 -5 -5 -5 -5 -5 -5 -4 -4 -4 -4 -4 -4 -4 -4 -4 -3 -3 -3 -3 -3 -2 -2 -2 -2 -1 -1 ------- Run | Yrd Mat Min Mat Min Mat Gar Mat Gar Mat Fac Was Fac Gar Fac Low Low Dat Pro Fac Ext Cet Arc Hub Fac Was Fac Upp Upp War Pro Fac Gar Fac Gar Fac Gar Arm Lab Res Gar Res Tes Gar Res Qua Sec Gar Acc Com Slots Evolved 18 | . . . 2 . 2 . . . . 2 . . . . . . . . 2 . . . . 2 . . . . . . 2 . . . . . . . 2 . . . . 2 . . . 2 . Power 1 | . . . . . . . . . . . . . . . . . . . . . . . . . . . . . . . 1 . . . . . . . . . . . . . . . . . . Propulsion 8 | . . . 2 . . . . . . . . . . . . . . . 1 . . . . 2 . . . . . . 1 . . . . . . . 1 . . . . 1 . . . . . Utility 9 | . . . . . 2 . . . . 2 . . . . . . . . 1 . . . . . . . . . . . . . . . . . . . 1 . . . . 1 . . . 2 . Weapon . | . . . . . . . . . . . . . . . . . . . . . . . . . . . . . . . . . . . . . . . . . . . . . . . . . . Parts Attached 280 | 4 15 1 15 . 6 2 11 10 5 9 2 8 2 10 1 . . . 6 . 7 3 1 33 1 14 1 . 5 . 6 2 5 1 10 1 1 . 7 2 15 5 3 25 . 1 2 8 14 Power 32 | . . . 2 . 1 . 2 . 1 1 1 1 1 1 . . . . 1 . . . . 4 1 2 . . . . 3 . . . . . . . . 1 2 . 1 5 . . . . 1 Engine 8 | . . . 2 . 1 . 2 . 1 1 . . . 1 . . . . . . . . . . . . . . . . . . . . . . . . . . . . . . . . . . . Core 13 | . . . . . . . . . . . 1 1 1 . . . . . 1 . . . . 4 1 1 . . . . 2 . . . . . . . . . . . 1 . . . . . . Reactor 11 | . . . . . . . . . . . . . . . . . . . . . . . . . . 1 . . . . 1 . . . . . . . . 1 2 . . 5 . . . . 1 Propulsion 90 | 2 8 . 6 . 2 2 6 9 3 1 . 5 . 2 . . . . 1 . . . . 11 . 6 . . 2 . . . 1 . 4 . . . 2 . 5 . . 8 . . . 2 2 Treads 4 | 2 1 . . . . . . 1 . . . . . . . . . . . . . . . . . . . . . . . . . . . . . . . . . . . . . . . . . Leg . | . . . . . . . . . . . . . . . . . . . . . . . . . . . . . . . . . . . . . . . . . . . . . . . . . . Wheel . | . . . . . . . . . . . . . . . . . . . . . . . . . . . . . . . . . . . . . . . . . . . . . . . . . . Hover . | . . . . . . . . . . . . . . . . . . . . . . . . . . . . . . . . . . . . . . . . . . . . . . . . . . Flight 86 | . 7 . 6 . 2 2 6 8 3 1 . 5 . 2 . . . . 1 . . . . 11 . 6 . . 2 . . . 1 . 4 . . . 2 . 5 . . 8 . . . 2 2 Utility 117 | . 2 1 3 . 2 . 1 1 1 5 . 2 1 4 1 . . . 4 . 3 2 1 14 . 6 1 . 2 . 3 2 4 1 5 1 . . 5 1 7 5 2 9 . 1 . 5 9 Device 50 | . 1 . 1 . . . . . 1 2 . . 1 1 1 . . . . . 1 . . 7 . 1 . . 1 . . 1 2 1 3 . . . 4 1 2 2 2 5 . 1 . 3 5 Storage 14 | . . . 2 . . . 1 . . . . 1 . 1 . . . . 1 . 1 . . . . . 1 . 1 . . . . . 1 . . . . . 1 . . 2 . . . 1 . Processor 8 | . . . . . . . . . . 1 . . . . . . . . 1 . . . . 2 . . . . . . . . 1 . . . . . . . . . . 2 . . . . 1 Hackware 31 | . 1 . . . 1 . . . . 2 . 1 . 2 . . . . 2 . . 2 . 5 . 4 . . . . 3 . 1 . 1 . . . 1 . 3 . . . . . . 1 1 Protection 14 | . . 1 . . 1 . . 1 . . . . . . . . . . . . 1 . 1 . . 1 . . . . . 1 . . . 1 . . . . 1 3 . . . . . . 2 Artifact . | . . . . . . . . . . . . . . . . . . . . . . . . . . . . . . . . . . . . . . . . . . . . . . . . . . Weapon 41 | 2 5 . 4 . 1 . 2 . . 2 1 . . 3 . . . . . . 4 1 . 4 . . . . 1 . . . . . 1 . 1 . . . 1 . . 3 . . 2 1 2 Energy Gun 3 | . . . 1 . . . . . . . . . . . . . . . . . 1 . . . . . . . . . . . . . . . 1 . . . . . . . . . . . . Energy Cannon 3 | . . . . . . . . . . . . . . . . . . . . . 1 . . . . . . . . . . . . . . . . . . . 1 . . . . . 1 . . Ballistic Gun 13 | 2 4 . 1 . . . 2 . . . . . . . . . . . . . 1 . . 1 . . . . . . . . . . . . . . . . . . . 1 . . . . 1 Ballistic Cannon . | . . . . . . . . . . . . . . . . . . . . . . . . . . . . . . . . . . . . . . . . . . . . . . . . . . Launcher 4 | . . . . . 1 . . . . . 1 . . . . . . . . . . . . 1 . . . . . . . . . . . . . . . . . . . . . . . 1 . Special Weapon 3 | . 1 . . . . . . . . . . . . . . . . . . . 1 . . . . . . . . . . . . . . . . . . . . . . . . . 1 . . Impact Weapon 4 | . . . 2 . . . . . . 1 . . . . . . . . . . . . . . . . . . . . . . . . . . . . . . . . . 1 . . . . . Slashing Weapon 6 | . . . . . . . . . . . . . . 2 . . . . . . . . . 1 . . . . . . . . . . 1 . . . . . . . . 1 . . . . 1 Piercing Weapon 1 | . . . . . . . . . . . . . . . . . . . . . . . . . . . . . 1 . . . . . . . . . . . . . . . . . . . . Special Melee Weapon 4 | . . . . . . . . . . 1 . . . 1 . . . . . . . 1 . 1 . . . . . . . . . . . . . . . . . . . . . . . . . Unidentified Prototypes 49 | . . . 1 . . . 1 . 1 . . . . 1 . . . . 1 . 6 . . 1 . . . . 4 . 3 . 2 . 1 . . . 2 . . 4 . 11 . 7 . 1 2 Parts Lost 77 | . 2 2 2 . 2 6 1 8 1 2 . . 2 . . . . . 1 . 2 . 6 7 . 5 . . . . . . . 1 . . . . 1 8 . . 4 1 . . . 2 11 Power 8 | . . . 1 . . 1 . 2 . . . . 1 . . . . . . . . . 1 . . . . . . . . . . . . . . . . . . . 1 . . . . . 1 Propulsion 42 | . 2 2 1 . 2 4 1 5 . 2 . . . . . . . . . . . . 3 5 . 4 . . . . . . . . . . . . . 5 . . 2 . . . . . 4 Utility 20 | . . . . . . . . 1 . . . . 1 . . . . . 1 . 1 . 1 2 . . . . . . . . . 1 . . . . 1 2 . . 1 1 . . . 2 5 Weapon 7 | . . . . . . 1 . . 1 . . . . . . . . . . . 1 . 1 . . 1 . . . . . . . . . . . . . 1 . . . . . . . . 1 Highest Loss Streak 11 | . 1 2 2 . 1 2 1 4 1 2 . . 1 . . . . . 1 . 2 . 6 2 . 3 . . . . . . . 1 . . . . 1 8 . . 2 1 . . . 1 11 To Critical Strikes . | . . . . . . . . . . . . . . . . . . . . . . . . . . . . . . . . . . . . . . . . . . . . . . . . . . Average Backups 9 | . 4 4 6 8 8 6 8 6 8 9 10 9 7 4 5 5 5 5 7 9 9 10 10 9 10 9 9 10 10 14 9 9 8 8 8 9 8 9 9 8 8 11 12 13 13 13 13 13 17 Power 1 | . . 1 . . . . . . . . 1 1 1 . . . . . 1 1 1 1 1 . 1 1 1 1 1 2 1 1 1 1 1 1 1 1 1 1 2 1 . 1 1 1 1 1 2 Propulsion 1 | . 1 1 1 4 4 2 2 1 4 3 2 2 1 1 1 1 1 1 . 1 1 1 1 . . . 1 1 1 3 1 2 1 2 2 2 1 1 . . . 1 . . 1 1 1 . . Utility 4 | . . 1 1 2 1 2 1 1 1 2 3 2 2 1 1 1 1 1 3 4 4 4 4 5 6 5 5 5 5 6 3 3 3 4 4 5 5 6 6 6 4 8 8 7 6 5 5 5 5 Weapon 2 | . 1 1 1 2 2 2 3 2 1 2 3 3 2 2 2 2 2 2 2 2 2 3 3 3 3 3 2 3 3 3 3 3 2 1 1 1 1 1 1 . . . 1 2 2 2 2 2 3 Tool/Special . | . . . . . . . . . . . . . . . . . . . . . . . . . . . . . . . . . . . . . . . . . . . . . . . . . . Unused Backups 35 | . 1 . . . . . 1 . 2 1 . 1 1 1 . . . . 1 . . . . 2 . 2 1 . . 1 1 . 1 . 2 . . . 2 . 1 2 . 1 5 . . . 5 Power 5 | . . . . . . . . . 1 . . . . . . . . . 1 . . . . 1 . . . . . . . . . . . . . . . . . 1 . . . . . . 1 Propulsion 5 | . . . . . . . 1 . . . . 1 . . . . . . . . . . . . . . . . . 1 1 . . . 1 . . . . . . . . . . . . . . Utility 16 | . 1 . . . . . . . . 1 . . . 1 . . . . . . . . . 1 . 2 1 . . . . . . . 1 . . . 2 . 1 1 . 1 3 . . . . Weapon 3 | . . . . . . . . . 1 . . . . . . . . . . . . . . . . . . . . . . . 1 . . . . . . . . . . . 1 . . . . Tool/Special 6 | . . . . . . . . . . . . . 1 . . . . . . . . . . . . . . . . . . . . . . . . . . . . . . . 1 . . . 4 Average Slot Usage (%) 88 | . 75 59 86 100 91 91 88 81 81 94 99 98 85 91 92 92 92 92 91 93 93 98 89 83 100 95 88 88 87 88 88 89 87 88 90 89 88 89 82 73 77 87 82 85 85 85 86 87 84 Engine 1 | . . . 8 11 9 3 8 6 5 7 7 5 . . . . . . . . . . . . . . . . . . . . . . . . . . . . . . . . . . . . . Core 2 | . . . . . . . . . . . . 1 3 7 7 7 7 7 6 6 6 6 4 4 5 1 5 5 4 . 8 10 10 10 10 10 10 10 . . . . 1 . . . . . . Reactor 2 | . . . . . . . . . . . . . . . . . . . . . . . . . . 3 . . . 5 . . . . . . . . 3 3 8 9 7 7 8 8 8 6 5 Flight 32 | . 19 19 35 44 35 34 35 29 36 30 30 30 30 30 30 30 30 30 32 33 33 33 31 31 41 38 35 35 35 35 35 36 35 36 36 36 35 36 37 32 29 33 31 30 30 29 29 29 29 Device 12 | . 7 2 . . 3 . 4 7 1 15 15 15 14 13 15 15 15 15 13 13 11 6 4 8 10 11 11 11 11 17 14 10 14 11 15 13 15 15 15 11 14 16 13 16 13 13 16 22 19 Storage 5 | . . . 8 11 9 8 7 4 9 7 7 7 3 . 7 7 7 7 6 6 7 13 13 5 5 5 5 5 5 5 5 5 5 5 5 5 5 5 4 4 4 4 4 4 4 4 4 3 3 Processor 5 | . . . . . . . . . . 6 7 7 7 7 7 7 7 7 6 6 6 6 6 7 11 10 5 5 5 5 5 5 5 5 5 5 5 5 4 4 4 4 4 4 8 8 8 7 7 Hackware 12 | . 12 14 11 11 17 18 18 18 18 15 15 15 15 21 15 15 15 15 19 20 20 20 18 12 11 11 11 11 11 11 10 10 10 10 10 10 10 10 9 9 9 9 9 8 8 8 8 7 5 Protection 1 | . . 5 1 . 3 9 4 . . . . . . . . . . . . . . . 1 . . . 4 5 4 . . 5 . 3 . 1 . . . 1 . . 3 3 3 3 4 2 5 Ballistic Gun 1 | . 20 14 1 . 1 3 . 7 5 . . . . . . . . . . . 1 5 2 1 . . . . . . . . . . . . . . . . . . . . . . . . . Impact Weapon 3 | . . . 17 22 8 9 8 4 3 7 6 7 7 5 . . . . . . . . . 2 . 5 5 4 2 . . . . . . . . . . . . . . 2 4 4 3 2 1 Slashing Weapon 1 | . . . . . . . . . . . . . . 1 7 7 7 7 6 6 4 . . 1 1 . . . 2 4 5 4 5 4 6 4 4 5 4 3 4 4 4 1 . . . . . Peak Build Rating 235 | 4 10 10 17 17 24 23 31 30 28 37 36 46 52 54 56 53 53 53 68 68 77 79 72 84 88 92 91 90 107 102 118 118 119 118 127 128 134 123 156 157 159 167 166 185 189 194 204 227 235 Average Rating 92 | 3 7 8 13 16 20 22 27 23 21 32 33 37 44 49 52 52 53 53 65 68 67 75 64 60 85 81 89 89 92 101 111 113 113 116 119 124 122 123 144 137 144 159 148 174 180 183 192 205 205 On Entrance 83 | . 4 9 10 16 17 21 19 28 18 27 34 34 46 40 52 52 53 53 53 68 68 68 72 33 83 83 92 90 90 102 102 113 113 117 116 127 119 123 123 152 111 158 160 145 181 183 192 204 193 Avg Prop Armor Cover (%) 8 | 27 25 . . . . 9 14 4 4 . . . 23 19 . . . . 5 . . 23 . 6 7 6 10 10 9 6 11 . 5 . . . . . . . 3 . . . . . . . 4 Naked Turns . | . . . . . . . . . . . . . . . . . . . . . . . . . . . . . . . . . . . . . . . . . . . . . . . . . . Heaviest Build 105 | 3 7 6 18 18 19 19 22 21 17 19 19 21 26 17 17 17 17 17 24 24 30 28 27 26 30 30 36 29 42 42 49 48 51 50 49 51 48 46 57 60 67 68 67 79 78 80 79 100 105 Greatest Support 105 | 3 8 8 20 18 20 20 24 24 18 19 19 22 25 21 21 21 21 21 33 33 27 27 33 39 29 47 39 39 48 44 52 58 52 58 52 59 51 51 62 70 74 74 70 82 79 80 80 105 105 Greatest Overweight (x) 9 | . . . 4 . 1 1 1 3 . . . 1 1 . . . . . . . 1 9 . 1 1 . . . . . . . 1 . . . 1 . . . 1 . . 1 . . . . 1 Average Overweight (x) . | . . . . . . . . . . . . . . . . . . . . . . 3 . . . . . . . . . . . . . . . . . . . . . . . . . . . Largest Inventory Capacity 20 | 5 5 5 10 10 10 10 10 10 10 10 10 10 10 8 8 8 8 8 10 10 10 10 10 10 10 10 15 10 15 15 15 10 10 10 10 10 10 10 10 10 15 15 15 15 15 15 15 20 20 Average Capacity 10 | 5 5 5 8 10 10 9 9 7 10 10 10 10 7 5 8 8 8 8 9 10 10 10 10 10 10 10 10 10 11 15 10 10 10 10 10 10 10 10 10 10 11 15 15 15 15 15 15 17 20 Most Carried 20 | 1 5 5 9 9 10 8 10 10 10 10 10 10 10 5 5 6 6 6 10 9 10 10 10 10 10 10 11 10 15 15 15 10 10 10 10 10 10 10 10 10 11 15 15 15 15 15 15 19 20 Average Carried 10 | . 4 3 6 8 8 6 8 6 9 9 9 9 7 4 5 5 6 6 8 9 9 10 10 9 9 9 9 9 11 15 9 10 9 9 9 10 9 10 9 9 9 12 13 14 14 14 14 14 19 Final Capacity 20 | 5 5 5 10 10 10 5 10 10 10 10 10 10 5 8 8 8 8 8 10 10 10 10 10 10 10 10 10 10 15 15 10 10 10 10 10 10 10 10 10 10 15 15 15 15 15 15 15 20 20 Final Carried 18 | 1 5 3 8 9 8 5 10 8 10 10 10 10 5 5 5 6 6 6 9 9 10 10 10 10 10 10 10 10 15 15 10 10 10 9 10 10 10 10 10 7 10 15 11 15 15 14 14 18 12 Class Distribution -------------------- 40% | Hacker-Scout 16% | Hacker-Sprinter 9% | Scavenger-Sprinter 7% | Hacker-Ninja 6% | Scavenger-Scout 4% | Mutant 4% | Commander-Scout 4% | Hacker-Mutant Dominant Class ---------------- Mutant | -10/Materials Scavenger-Mutant | -10/Mines Scavenger-Sprinter | -9/Materials Scavenger-Sprinter | -9/Mines Scavenger-Sprinter | -8/Materials Scavenger-Sprinter | -8/Garrison Hacker-Sprinter | -8/Materials Hacker-Sprinter | -8/Garrison Scavenger-Sprinter | -8/Materials Scavenger-Scout | -7/Factory Scavenger-Scout | -7/Waste Scavenger-Scout | -7/Factory Hacker-Sprinter | -7/Garrison Hacker-Scout | -7/Factory Hacker-Scout | -7/Lower Caves Hacker-Scout | -7/Lower Caves Hacker-Scout | -7/Data Miner Hacker-Scout | -6/Proximity Caves Hacker-Scout | -6/Factory Commander-Scout | -6/Extension Hacker-Scout | -6/Cetus Hacker-Mutant | -6/Archives Hacker-Mutant | -6/Hub_04(d) Hacker-Scout | -5/Factory Hacker-Scout | -5/Waste Hacker-Scout | -5/Factory Machinist-Scout | -5/Upper Caves Machinist-Scout | -5/Upper Caves Machinist-Scout | -5/Warlord Hacker-Scout | -4/Proximity Caves Hacker-Scout | -4/Factory Hacker-Sprinter | -4/Garrison Hacker-Scout | -4/Factory Hacker-Sprinter | -4/Garrison Hacker-Scout | -4/Factory Hacker-Sprinter | -4/Garrison Hacker-Scout | -4/Armory Hacker-Scout | -4/Lab Hacker-Scout | -3/Research Hacker-Sprinter | -3/Garrison Hacker-Scout | -3/Research Hacker-Ninja | -3/Testing Hacker-Sprinter | -3/Garrison Hacker-Ninja | -2/Research Hacker-Scout | -2/Quarantine Hacker-Scout | -2/Section 7 Hacker-Scout | -2/Garrison Hacker-Scout | -1/Access Hacker-Scout | -1/Command Resources | -11 -10 -10 -9 -9 -8 -8 -8 -8 -8 -7 -7 -7 -7 -7 -7 -7 -7 -6 -6 -6 -6 -6 -6 -5 -5 -5 -5 -5 -5 -4 -4 -4 -4 -4 -4 -4 -4 -4 -3 -3 -3 -3 -3 -2 -2 -2 -2 -1 -1 ----------- Run | Yrd Mat Min Mat Min Mat Gar Mat Gar Mat Fac Was Fac Gar Fac Low Low Dat Pro Fac Ext Cet Arc Hub Fac Was Fac Upp Upp War Pro Fac Gar Fac Gar Fac Gar Arm Lab Res Gar Res Tes Gar Res Qua Sec Gar Acc Com Matter Collected 8596 | 256 220 169 235 10 123 88 219 591 26 360 76 110 289 252 20 . . . 120 . 137 262 . 551 118 215 50 39 . 14 282 . 346 . 301 109 146 . 334 143 321 160 . 670 20 150 330 348 386 Remotely . | . . . . . . . . . . . . . . . . . . . . . . . . . . . . . . . . . . . . . . . . . . . . . . . . . . Salvage Created 7032 | 127 230 . 275 . 125 38 132 390 30 177 . . 430 360 . . . . 120 64 . 331 . 604 . 274 . 69 . 48 294 . 164 39 270 . 60 . 348 112 349 290 . 309 43 185 . 350 395 Parts 309 | 5 25 . 9 . 6 5 6 30 10 . . . 19 15 . . . . 3 4 . 28 . 38 . 3 . 8 . 5 6 . 5 1 15 . 6 . 9 3 16 7 . 12 . 2 . 8 . Haulers Intercepted 5 | . . . 1 . . . 1 . . . . . . 1 . . . . . . . . . . . . . . . . . . . . . . . . . . . . . 2 . . . . . Recyclers Shooed 2 | . 1 . . . . . . . . . . . . 1 . . . . . . . . . . . . . . . . . . . . . . . . . . . . . . . . . . . Parts Field Recycled . | . . . . . . . . . . . . . . . . . . . . . . . . . . . . . . . . . . . . . . . . . . . . . . . . . . Retrieved Matter . | . . . . . . . . . . . . . . . . . . . . . . . . . . . . . . . . . . . . . . . . . . . . . . . . . . Parts Self-Destructed 8 | . . . . . . . . . . . . . . . 2 . . . . . . . . . . . . 4 . 2 . . . . . . . . . . . . . . . . . . . Prevented 2 | . . . . . . . . . . . . . . . . . . 1 . . . . . . . . . 1 . . . . . . . . . . . . . . . . . . . . . Parts Restored . | . . . . . . . . . . . . . . . . . . . . . . . . . . . . . . . . . . . . . . . . . . . . . . . . . . Kills | -11 -10 -10 -9 -9 -8 -8 -8 -8 -8 -7 -7 -7 -7 -7 -7 -7 -7 -6 -6 -6 -6 -6 -6 -5 -5 -5 -5 -5 -5 -4 -4 -4 -4 -4 -4 -4 -4 -4 -3 -3 -3 -3 -3 -2 -2 -2 -2 -1 -1 ------- Run | Yrd Mat Min Mat Min Mat Gar Mat Gar Mat Fac Was Fac Gar Fac Low Low Dat Pro Fac Ext Cet Arc Hub Fac Was Fac Upp Upp War Pro Fac Gar Fac Gar Fac Gar Arm Lab Res Gar Res Tes Gar Res Qua Sec Gar Acc Com Combat Hostiles Destroyed 114 | . 10 . 7 . 3 6 5 21 5 . . . 18 . . . . . . 1 . . . 9 . 2 . 5 . 4 . . . 4 . . 3 . 1 5 . . . . . . . 3 2 Melee 5 | . . . 1 . . . . . . . . . 1 . . . . . . 1 . . . 1 . . . . . . . . . . . . . . 1 . . . . . . . . . . Guns 37 | . 10 . 4 . 3 2 2 8 2 . . . . . . . . . . . . . . 6 . . . . . . . . . . . . . . . . . . . . . . . . . Cannons 2 | . . . . . . . . . . . . . . . . . . . . . . . . . . . . . . . . . . . . . . . . . . . . . . . . . 2 AOE 64 | . . . . . . 4 3 13 3 . . . 15 . . . . . . . . . . 2 . . . 5 . 4 . . . 4 . . 3 . . 5 . . . . . . . 3 . Classes Destroyed 13 | 2 4 . 1 . . . 1 3 . . . . 1 . . . . . . . . . . 1 . . . . . . . . . . . . . . . . . . . . . . . . . Worker 1 | . . . . . . . 1 . . . . . . . . . . . . . . . . . . . . . . . . . . . . . . . . . . . . . . . . . . Builder 6 | . . . . . . . . . . . . . . . . . . . . . . . . 4 . . . . . . . . . . 1 . . . . . 1 . . . . . . . . Tunneler 4 | 1 . . . . . . . . . . . . . . . . . . . . . . . 1 . . . . . . . . . . . . . . . . 1 . . . . . . 1 . Hauler 5 | . . . 1 . . . 1 . . . . . . 1 . . . . . . . . . . . . . . . . . . . . . . . . . . . . . 2 . . . . . Recycler 28 | 1 . . . . 1 . . . . 2 . . . 5 . . . . 1 . . . . 2 . 1 . . . . 2 . 1 . 2 . . . 1 . 2 2 . 1 . 1 . 2 1 Operator 12 | . 2 . . . . . . . . . . . . . . . . . . . . 8 . . . . . . . . . . 1 . . . . . . . . . . . . 1 . . . Watcher 20 | . 1 . 2 . 1 . 1 . . 2 . . . 1 . . . . . . . . . 1 . 2 . . . . . . . . . . 1 . 4 . 1 . . . 1 . . 1 1 Swarmer 80 | . 9 . 3 . 3 6 5 11 5 . . . 6 . . . . . . . . . . 9 . . . 5 . 4 . . . 4 . . 3 . . 4 . . . . . . . 3 . Grunt 23 | . 1 . 4 . . . . 4 . . . . 10 . . . . . . 1 . . . . . 2 . . . . . . . . . . . . . 1 . . . . . . . . . Duelist 1 | . . . . . . . . 1 . . . . . . . . . . . . . . . . . . . . . . . . . . . . . . . . . . . . . . . . . Sentry 2 | . . . . . . . . 2 . . . . . . . . . . . . . . . . . . . . . . . . . . . . . . . . . . . . . . . . . Hunter 3 | . . . . . . . . . . . . . 2 . . . . . . . . . . . . . . . . . . . . . . . . . 1 . . . . . . . . . . Programmer 3 | . . . . . . . . 3 . . . . . . . . . . . . . . . . . . . . . . . . . . . . . . . . . . . . . . . . . Combat Programmer 1 | . . . . . . . . . . . . . . . . . . . . . . . . . . . . . . . . . . . . . . . . . . . . . . . . . 1 Wasp 1 | . . . . . . . . . . . . . . . . . . . . . . . . . . 1 . . . . . . . . . . . . . . . . . . . . . . . Thug 1 | . . . . . . . . . . . . . . . . . . . . . . 1 . . . . . . . . . . . . . . . . . . . . . . . . . . . Best Kill Streak 8 | 2 6 . 3 . 3 3 4 5 4 2 . . 8 3 . . . . 1 1 . 3 . 6 . 3 . 5 . 4 1 . 1 4 2 . 4 . 2 5 1 1 . 1 1 1 . 3 1 Combat Bots Only 8 | . 5 . 3 . 3 3 3 5 4 . . . 8 . . . . . . 1 . . . 3 . 1 . 5 . 4 . . . 4 . . 3 . 1 5 . . . . . . . 3 1 Max Kills in Single Turn 4 | 1 1 . 1 . 1 1 4 3 3 1 . . 4 1 . . . . 1 1 . 1 . 2 . 1 . 3 . 3 1 . 1 2 1 . 2 . 1 2 1 1 . 1 1 1 . 3 1 Gunslinging . | . . . . . . . . . . . . . . . . . . . . . . . . . . . . . . . . . . . . . . . . . . . . . . . . . . Exploded 4 | . . . . . . 1 3 3 3 . . . 4 . . . . . . . . . . 2 . . . 3 . 3 . . . 2 . . 2 . . 2 . . . . . . . 3 . Melee 1 | . . . 1 . . . . . . . . . 1 . . . . . . 1 . . . 1 . . . . . . . . . . . . . . 1 . . . . . . . . . . Uniques/NPCs Destroyed 1 | . . . . . . . . . . . . . . . . . . . . . . . . . . . . . . . . . . . . . . . . . . . . . . . . . 1 MAIN.C (-1/Command) Combat | -11 -10 -10 -9 -9 -8 -8 -8 -8 -8 -7 -7 -7 -7 -7 -7 -7 -7 -6 -6 -6 -6 -6 -6 -5 -5 -5 -5 -5 -5 -4 -4 -4 -4 -4 -4 -4 -4 -4 -3 -3 -3 -3 -3 -2 -2 -2 -2 -1 -1 -------- Run | Yrd Mat Min Mat Min Mat Gar Mat Gar Mat Fac Was Fac Gar Fac Low Low Dat Pro Fac Ext Cet Arc Hub Fac Was Fac Upp Upp War Pro Fac Gar Fac Gar Fac Gar Arm Lab Res Gar Res Tes Gar Res Qua Sec Gar Acc Com Hostile Shots Fired 1282 | . 59 2 48 . 37 60 39 105 17 7 . 24 33 8 1 . . . 15 27 11 . 20 98 1 55 . 7 2 3 . 39 5 58 14 39 6 . 32 94 12 24 88 19 10 11 26 12 114 Missed 655 | . 21 . 23 . 17 29 23 43 6 4 . 16 15 7 . . . . 11 12 4 . 7 40 1 32 . 3 1 1 . 25 4 30 6 25 3 . 21 49 11 14 57 10 6 8 16 7 47 Intercepted 8 | . . . . . . . . . . . . . . . . . . . . . . . . . . . . . . . . . . . . . . . . . . . . . . . . . 8 Hits 627 | . 38 2 25 . 20 31 16 62 11 3 . 8 18 1 1 . . . 4 15 7 . 13 58 . 23 . 4 1 2 . 14 1 28 8 14 3 . 11 45 1 10 31 9 4 3 10 5 67 Melee 7 | . . . . . . . . . . . . . 2 . . . . . . . . . 1 . . . . . . . . . . . . 2 . . 1 1 . . . . . . . . . Projectile 620 | . 38 2 25 . 20 31 16 62 11 3 . 8 16 1 1 . . . 4 15 7 . 12 58 . 23 . 4 1 2 . 14 1 28 8 12 3 . 10 44 1 10 31 9 4 3 10 5 67 AOE 6 | . . 2 . . . . . 1 . . . 1 . . . . . . . . . . 2 . . . . . . . . . . . . . . . . . . . . . . . . . . Critical Strikes 32 | . . . . . 1 . 1 2 . 2 . . . . . . . . . . 2 . 1 1 . 2 . . . . . 1 . 3 . 4 . . . 3 . 1 1 . 1 . . . 6 Actively Blocked 12 | . . . . . . . . . . . . . . . . . . . . . . . 1 . . . . . . . . 1 . 1 . 1 . . . 1 . . . . 1 . . . 6 Part Disruptions 5 | . . . . . . . . 1 . . . . . . . . . . . . . . . . . . . . . . . . . . . 1 . . . . . . . . . . . . 3 Actively Blocked 2 | . . . . . . . . . . . . . . . . . . . . . . . . . . . . . . . . . . . . 1 . . . . . . . . . . . . 1 Damage Taken 12470 | . 334 88 337 . 237 345 191 851 93 46 15 127 283 20 14 . . . 34 266 199 . 508 968 . 472 . 60 19 30 . 216 51 544 138 311 64 . 292 987 18 214 713 230 116 79 270 182 2508 Core 2340 | . 73 50 61 . 66 139 48 174 24 . . . 81 20 . . . . 16 26 55 . 224 321 . 99 . . . 15 . 41 . 75 . 42 . . 18 128 . . 97 78 . . . . 369 Absorbed by Shields 155 | . . . . . . 8 . 11 . . . . 8 . . . . . . 33 39 . . . . . . . . . . . . 7 . . . . . 49 . . . . . . . . . Redirected to Shielding 694 | . . . . . 18 8 . . . . . . . . . . . . . . . . 78 . . 19 . . . . . 67 . 153 . 93 . . 20 88 . . . . . . . . 150 Ignored by Resistances 197 | . . . . . . . . . . . . . . . . . . . . . . . . . . . . . . . . . . . . . . . . . . . . . . . . . 197 Regen/Repaired (Parts) 2437 | . 34 . . . 32 . 136 . . 179 . . . 62 . . . . 28 . . . . 77 80 50 . . 44 . . . 259 . 271 . 74 . 367 . 15 . 47 262 13 145 40 100 122 Core Remaining (%) 70 | 100 . 50 . 84 . . . . 18 . . . . . . . . 85 . . . . 62 . . . . . . 56 . . . . . . . 86 . . . . 81 . . . 86 . 67 Volleys Fired 478 | 4 41 . 15 . 12 19 3 50 6 . 1 . 17 . . . . . . . 3 53 1 34 5 . . 3 . 2 . 2 . 2 . 6 2 . . 5 10 20 4 16 24 46 22 22 28 Largest 2 | 2 2 . 1 . 1 1 2 2 2 . 1 . 1 . . . . . . . 1 1 1 1 1 . . 1 . 1 . 1 . 1 . 1 1 . . 1 1 1 1 1 1 1 1 1 1 Hottest 300 | 40 100 . 23 . 23 30 50 55 55 . 36 . 36 . . . . . . . 35 35 35 36 90 . . 36 . 36 . 36 . 36 . 36 36 . . 36 113 113 113 113 113 113 300 300 300 Shots Fired 550 | 8 79 . 15 . 12 19 5 79 6 . 1 . 17 . . . . . . . 3 53 1 34 5 . . 3 . 2 . 2 . 2 . 6 2 . . 5 10 20 4 16 24 46 22 21 28 Gun 292 | 8 77 . 15 . 12 13 4 69 5 . . . . . . . . . . . 3 53 1 32 . . . . . . . . . . . . . . . . . . . . . . . . . Cannon 186 | . . . . . . . . . . . . . . . . . . . . . . . . . 5 . . . . . . . . . . . . . . . 10 20 4 16 24 46 15 20 26 Launcher 61 | . . . . . . 6 1 10 1 . 1 . 17 . . . . . . . . . . 2 . . . 3 . 2 . 2 . 2 . 6 2 . . 5 . . . . . . . 1 . Special 11 | . 2 . . . . . . . . . . . . . . . . . . . . . . . . . . . . . . . . . . . . . . . . . . . . . 7 . 2 Kinetic 292 | 8 77 . 15 . 12 13 4 69 5 . . . . . . . . . . . 3 53 1 32 . . . . . . . . . . . . . . . . . . . . . . . . . Thermal 188 | . 2 . . . . . . . . . . . . . . . . . . . . . . . 5 . . . . . . . . . . . . . . . 10 20 4 16 24 46 15 20 26 Explosive 61 | . . . . . . 6 1 10 1 . 1 . 17 . . . . . . . . . . 2 . . . 3 . 2 . 2 . 2 . 6 2 . . 5 . . . . . . . 1 . Electromagnetic . | . . . . . . . . . . . . . . . . . . . . . . . . . . . . . . . . . . . . . . . . . . . . . . . . . . Robot Hit Streak 15 | 2 9 . 12 . 13 6 7 15 5 . . . 10 . . . . . . . 11 5 . 9 7 . . 1 . 2 . . . 2 . . 4 . . 5 . . . 1 . . 7 2 9 Robot Miss Streak 5 | 1 4 . 2 . 2 2 1 5 3 . . . . . . . . . . . 1 4 . 1 . . . 1 . 1 . . . . . . . . . 2 . . . 4 . . 1 1 4 Penetration Max 3 | . . . . . . . . . . . . . . . . . . . . . . 1 . . . . . . . . . . . . . . . . . . . . . . . . . . 3 Secondary Targets . | . . . . . . . . . . . . . . . . . . . . . . . . . . . . . . . . . . . . . . . . . . . . . . . . . . Shots Hit Robots 367 | 5 43 . 28 . 10 15 7 50 3 5 . . 14 10 . . . . 1 8 1 30 . 34 5 9 . 1 . 1 2 . 3 2 3 . 2 . 12 3 9 2 . 8 1 2 9 5 24 Core Hits 223 | 4 19 . 7 . 4 6 7 27 5 . . . 31 5 . . . . 1 1 . 16 1 18 . 1 . 6 . 5 1 . 2 5 3 . 6 . 5 16 3 . . 3 . . 1 5 9 Critical Kills 4 | . . . . . . . . . . . . . . 1 . . . . . . . 3 . . . . . . . . . . . . . . . . . . . . . . . . . . . Critical Parts Destroyed 21 | . 1 . 2 . . . . . . 1 . . 2 . . . . . . . 1 2 . . . 3 . . . . . . . . . . . . . . . . . . . 1 2 . 6 Critical Strikes 31 | . 1 . 2 . . . . . . 1 . . 2 1 . . . . . 3 1 5 . . . 3 . . . . . . . . . . . . 1 . . . . . . 1 2 . 8 Destroy 15 | . 1 . . . . . . . . . . . . . . . . . . . 1 5 . . . . . . . . . . . . . . . . . . . . . . . . 2 . 6 Smash 12 | . . . 2 . . . . . . 1 . . 2 1 . . . . . . . . . . . 3 . . . . . . . . . . . . . . . . . . . 1 . . 2 Sever 4 | . . . . . . . . . . . . . . . . . . . . 3 . . . . . . . . . . . . . . . . . . 1 . . . . . . . . . . Melee Attacks 860 | . . . 32 . 24 35 17 17 4 47 . 24 34 28 5 . . 2 21 13 3 2 . 39 . 59 . . . 1 15 32 37 19 20 18 13 . 55 26 36 15 12 34 18 11 5 31 56 Impact 470 | . . . 32 . 24 35 17 17 4 46 . 24 34 19 . . . . . . . . . 25 . 59 . . . . . . . . . . . . . . . . . 18 18 11 5 31 51 Slashing 384 | . . . . . . . . . . . . . . 9 5 . . 2 21 13 3 . . 11 . . . . . 1 15 32 37 19 20 18 13 . 55 26 36 15 12 16 . . . . 5 Piercing . | . . . . . . . . . . . . . . . . . . . . . . . . . . . . . . . . . . . . . . . . . . . . . . . . . . Sneak Attacks 56 | . . . 1 . 1 . 2 . . 3 . . 1 6 . . . . 1 2 . 2 . 5 . 1 . . . . 2 . 1 . 3 . . . 6 1 4 2 . 3 1 1 1 4 2 Combat Hostiles 4 | . . . . . . . . . . . . . 1 . . . . . . 1 . . . . . . . . . . . . . . . . . . 1 1 . . . . . . . . . Follow-up Attacks 2 | . . . 2 . . . . . . . . . . . . . . . . . . . . . . . . . . . . . . . . . . . . . . . . . . . . . . Damage Inflicted 23422 | 56 539 . 870 . 309 536 570 2035 288 310 216 . 2231 835 . . . . 100 599 27 875 23 834 186 556 . 346 . 265 163 . 199 386 277 . 378 . 1045 728 856 238 . 635 97 290 596 1118 3810 Guns 3349 | 56 539 . 202 . 129 158 49 829 51 . . . . . . . . . . . 27 875 23 411 . . . . . . . . . . . . . . . . . . . . . . . . . Cannons 3266 | . . . . . . . . . . . . . . . . . . . . . . . . . 186 . . . . . . . . . . . . . . . . . . 42 . . 400 . 2638 Explosions 6778 | . . . . . . 270 196 1141 237 . 216 . 1897 . . . . . . . . . . 156 . . . 346 . 265 . . . 386 . . 378 . . 611 . . . . . . 126 553 . Melee 10029 | . . . 668 . 180 108 325 65 . 310 . . 334 835 . . . . 100 599 . . . 267 . 556 . . . . 163 . 199 . 277 . . . 1045 117 856 238 . 593 97 290 70 565 1172 Ramming . | . . . . . . . . . . . . . . . . . . . . . . . . . . . . . . . . . . . . . . . . . . . . . . . . . . Kinetic 3349 | 56 539 . 202 . 129 158 49 829 51 . . . . . . . . . . . 27 875 23 411 . . . . . . . . . . . . . . . . . . . . . . . . . Thermal 3266 | . . . . . . . . . . . . . . . . . . . . . . . . . 186 . . . . . . . . . . . . . . . . . . 42 . . 400 . 2638 Explosive 6778 | . . . . . . 270 196 1141 237 . 216 . 1897 . . . . . . . . . . 156 . . . 346 . 265 . . . 386 . . 378 . . 611 . . . . . . 126 553 . Electromagnetic . | . . . . . . . . . . . . . . . . . . . . . . . . . . . . . . . . . . . . . . . . . . . . . . . . . . Impact 5182 | . . . 668 . 180 108 325 65 . 310 . . 334 556 . . . . . . . . . 217 . 556 . . . . . . . . . . . . . . . . . . 97 290 70 565 841 Slashing 4847 | . . . . . . . . . . . . . . 279 . . . . 100 599 . . . 50 . . . . . . 163 . 199 . 277 . . . 1045 117 856 238 . 593 . . . . 331 Piercing . | . . . . . . . . . . . . . . . . . . . . . . . . . . . . . . . . . . . . . . . . . . . . . . . . . . Highest Corruption 6 | . . . . . . 1 1 4 4 1 . 1 1 . . . . . . . . . 1 4 . . . . . . . . . 2 2 . . . . 2 2 . 5 1 1 1 . 5 6 Average Corruption 2 | . . . . . . 1 1 1 4 1 . 1 1 . . . . . . . . . 1 3 . . . . . . . . . 1 1 . . . . 2 1 . 4 1 1 1 . 5 5 Corruption Purged 12 | . . . . . . . . . . 1 . . 1 . . . . . . . . . . 4 . . . . . . . . . . 2 . . . . . 2 . . 1 . 1 . . . Corruption Blocked 2 | . . . . . . . . . . . . . . . . . . . . . . . . . . 2 . . . . . . . . . . . . . . . . . . . . . . . Effects 77 | . . . . . . 1 8 6 4 5 . 1 . . . . . . . . . . . 4 . . . . . . . . . 1 . . . . . 1 4 . 3 3 2 . . 16 18 Message Errors 19 | . . . . . . . 3 1 1 1 . 1 . . . . . . . . . . . 1 . . . . . . . . . . . . . . . . 2 . 2 1 1 . . 1 4 Matter Fused 17 | . . . . . . . 3 2 1 . . . . . . . . . . . . . . . . . . . . . . . . . . . . . . . 2 . . 1 . . . 5 3 Heat Flow Errors 5 | . . . . . . 1 . . . . . . . . . . . . . . . . . . . . . . . . . . . . . . . . . . . . . 1 . . . 3 . Energy Discharges 14 | . . . . . . . 1 2 . 2 . . . . . . . . . . . . . 1 . . . . . . . . . 1 . . . . . 1 . . . . 1 . . 2 3 Parts Fused 1 | . . . . . . . . . . . . . . . . . . . . . . . . 1 . . . . . . . . . . . . . . . . . . . . . . . . . Data Loss (minor) 11 | . . . . . . . . 1 1 . . . . . . . . . . . . . . 1 . . . . . . . . . . . . . . . . . . 1 . . . . 3 4 Data Loss (major) 6 | . . . . . . . 1 . . 2 . . . . . . . . . . . . . . . . . . . . . . . . . . . . . . . . . . . . . 1 2 Misfires 1 | . . . . . . . . . . . . . . . . . . . . . . . . . . . . . . . . . . . . . . . . . . . . . . . . . 1 Weapon Failures 3 | . . . . . . . . . 1 . . . . . . . . . . . . . . . . . . . . . . . . . . . . . . . . . . . . . . 1 1 Overload Shots . | . . . . . . . . . . . . . . . . . . . . . . . . . . . . . . . . . . . . . . . . . . . . . . . . . . Overflow Damage 3736 | . . . 200 . 39 16 160 74 . 228 . . 196 202 . . . . . 114 . . . 112 . 267 . 3 . . 42 . 3 1 . . 10 . 207 87 342 148 . 80 73 220 80 293 539 Projectiles 265 | . . . . . . . . . . . . . . . . . . . . . . . . . . . . . . . . . . . . . . . . . . . . . . . 80 . 185 Explosions 148 | . . . . . . 16 . 74 . . . . 16 . . . . . . . . . . . . . . 3 . . . . . 1 . . 10 . . . . . . . . . . 28 . Melee 3323 | . . . 200 . 39 . 160 . . 228 . . 180 202 . . . . . 114 . . . 112 . 267 . . . . 42 . 3 . . . . . 207 87 342 148 . 80 73 220 . 265 354 Knockbacks 29 | . . . 6 . . . . . . 2 . . 3 3 . . . . . . . . . . . 7 . . . . . . . . . . . . . . . . . . 1 . . 2 5 Impact 28 | . . . 6 . . . . . . 2 . . 3 3 . . . . . . . . . . . 6 . . . . . . . . . . . . . . . . . . 1 . . 2 5 Kinetic . | . . . . . . . . . . . . . . . . . . . . . . . . . . . . . . . . . . . . . . . . . . . . . . . . . . Secondary 1 | . . . . . . . . . . . . . . . . . . . . . . . . . . 1 . . . . . . . . . . . . . . . . . . . . . . . Self-Inflicted Damage 116 | . . . . . . 25 . 50 . . . . . . . . . . . . . . . . . . . . . . . . . . . . . . . 41 . . . . . . . . . Shots 4 | . . . . . . 1 . 2 . . . . . . . . . . . . . . . . . . . . . . . . . . . . . . . 1 . . . . . . . . . Rammed . | . . . . . . . . . . . . . . . . . . . . . . . . . . . . . . . . . . . . . . . . . . . . . . . . . . Targets Rammed . | . . . . . . . . . . . . . . . . . . . . . . . . . . . . . . . . . . . . . . . . . . . . . . . . . . Kicked . | . . . . . . . . . . . . . . . . . . . . . . . . . . . . . . . . . . . . . . . . . . . . . . . . . . Crushed . | . . . . . . . . . . . . . . . . . . . . . . . . . . . . . . . . . . . . . . . . . . . . . . . . . . Highest Temperature 347 | . 18 . 6 5 7 222 16 27 6 . . 16 35 5 2 2 2 2 106 206 96 31 113 241 130 347 27 54 44 . 73 129 60 76 62 218 102 6 18 169 183 5 . 102 . . 58 160 180 Average Temperature 30 | . 6 . 3 5 4 149 7 7 4 . . 6 14 1 1 1 1 1 45 46 25 9 31 51 58 41 2 9 2 . 23 28 15 28 22 61 34 5 5 35 55 5 . 20 . . 30 65 46 Received Heat Transfer 1746 | . 54 . 135 . 81 9 63 180 9 . . 15 90 9 9 . . . 12 78 9 . 18 117 . 350 . . . . . . 9 90 . 55 9 . 42 99 9 27 39 . 9 9 27 . 84 Effects 1 | . . . . . . . . . . . . . . . . . . . . . . . . . . 1 . . . . . . . . . . . . . . . . . . . . . . . Short Circuit 1 | . . . . . . . . . . . . . . . . . . . . . . . . . . 1 . . . . . . . . . . . . . . . . . . . . . . . Siege Activations . | . . . . . . . . . . . . . . . . . . . . . . . . . . . . . . . . . . . . . . . . . . . . . . . . . . Martial Activations . | . . . . . . . . . . . . . . . . . . . . . . . . . . . . . . . . . . . . . . . . . . . . . . . . . . Shielding Activations . | . . . . . . . . . . . . . . . . . . . . . . . . . . . . . . . . . . . . . . . . . . . . . . . . . . Robots Disrupted . | . . . . . . . . . . . . . . . . . . . . . . . . . . . . . . . . . . . . . . . . . . . . . . . . . . Combat Hostiles . | . . . . . . . . . . . . . . . . . . . . . . . . . . . . . . . . . . . . . . . . . . . . . . . . . . Robots Corrupted 22 | . . . 2 . 1 . 1 . . 4 . . 2 1 . . . . . . . . . 1 . 5 . . . . . . . . . . . . . . . . . . 1 . . 2 2 Combat Hostiles 6 | . . . 2 . . . . . . . . . 2 . . . . . . . . . . . . 2 . . . . . . . . . . . . . . . . . . . . . . . Parts Fried 29 | . . . 3 . . . 1 . . 2 . . 1 . . . . . . . . . . 2 . 8 . . . . . . . . . . . . . . . . . . . 6 . 4 2 Impact Corruptions 54 | . . . 7 . 2 . 2 . . 6 . . 5 4 . . . . . . . . . 3 . 9 . . . . . . . . . . . . . . . . . . 2 3 . 5 6 Robots Melted . | . . . . . . . . . . . . . . . . . . . . . . . . . . . . . . . . . . . . . . . . . . . . . . . . . . Combat Hostiles . | . . . . . . . . . . . . . . . . . . . . . . . . . . . . . . . . . . . . . . . . . . . . . . . . . . Parts Melted . | . . . . . . . . . . . . . . . . . . . . . . . . . . . . . . . . . . . . . . . . . . . . . . . . . . Heat Transferred 74 | . . . . . . . . . . . . . . . . . . . . . . . . . . . . . . . . . . . . . . . . . . . . 37 . . . . 37 Parts Sabotaged . | . . . . . . . . . . . . . . . . . . . . . . . . . . . . . . . . . . . . . . . . . . . . . . . . . . Parts Stolen . | . . . . . . . . . . . . . . . . . . . . . . . . . . . . . . . . . . . . . . . . . . . . . . . . . . Parts Stripped . | . . . . . . . . . . . . . . . . . . . . . . . . . . . . . . . . . . . . . . . . . . . . . . . . . . Power Chain Reactions 2 | . . . . . . . . . . . . . . . . . . . . . . . . . . . . . . . . . . . . . 2 . . . . . . . . . . . . Alert | -11 -10 -10 -9 -9 -8 -8 -8 -8 -8 -7 -7 -7 -7 -7 -7 -7 -7 -6 -6 -6 -6 -6 -6 -5 -5 -5 -5 -5 -5 -4 -4 -4 -4 -4 -4 -4 -4 -4 -3 -3 -3 -3 -3 -2 -2 -2 -2 -1 -1 ------- Run | Yrd Mat Min Mat Min Mat Gar Mat Gar Mat Fac Was Fac Gar Fac Low Low Dat Pro Fac Ext Cet Arc Hub Fac Was Fac Upp Upp War Pro Fac Gar Fac Gar Fac Gar Arm Lab Res Gar Res Tes Gar Res Qua Sec Gar Acc Com Maximum Alert Level 3 | . 1 . . . . 2 2 3 2 1 . 1 3 2 . . . . 1 2 1 1 . 2 . 2 . . . . . 3 2 2 1 3 2 . . 2 1 . 1 1 . 1 3 3 3 Low Security (%) 52 | 100 79 100 100 100 100 40 69 13 . 25 100 42 5 . . . . . 81 54 21 38 100 46 100 12 . . . . 100 46 73 16 70 14 54 . 100 35 . 100 92 81 100 83 32 . . Level 1 24 | . 20 . . . . 35 28 10 . 74 . 57 11 51 . . . . 18 37 78 61 . 22 . 20 . . . . . 29 . 44 29 23 9 . . 16 100 . 7 18 . 16 20 . . Level 2 17 | . . . . . . 23 1 58 100 . . . 31 48 . . . . . 8 . . . 30 . 67 . . . . . 23 26 38 . 60 36 . . 48 . . . . . . 25 98 24 Level 3 5 | . . . . . . . . 17 . . . . 52 . . . . . . . . . . . . . . . . . . . . . . 1 . . . . . . . . . . 21 1 75 Level 4 . | . . . . . . . . . . . . . . . . . . . . . . . . . . . . . . . . . . . . . . . . . . . . . . . . . . Level 5 . | . . . . . . . . . . . . . . . . . . . . . . . . . . . . . . . . . . . . . . . . . . . . . . . . . . High Security . | . . . . . . . . . . . . . . . . . . . . . . . . . . . . . . . . . . . . . . . . . . . . . . . . . . Max Security . | . . . . . . . . . . . . . . . . . . . . . . . . . . . . . . . . . . . . . . . . . . . . . . . . . . Peak Influence 984 | 5 227 40 177 69 112 424 444 900 553 295 62 372 984 497 . . . . 235 424 289 315 198 650 127 655 . . . . 148 746 500 649 376 727 545 . 150 667 383 138 276 233 150 270 974 745 874 Initial 584 | . 3 40 . 69 . 51 204 2 438 248 62 . 149 497 . . . . . 50 224 99 42 63 93 67 . . . . 50 . 435 93 340 67 381 . . 94 383 112 . 155 67 21 131 584 486 Average 257 | 1 130 9 113 37 67 248 141 491 496 226 19 209 677 388 . . . . 176 207 230 220 111 292 105 412 . . . . 58 259 208 332 137 390 239 . 83 347 310 42 95 171 99 119 406 631 728 Influence Increases 20503 | 10 468 . 447 . 334 470 412 1058 179 505 31 817 980 221 30 . . . 409 1079 394 338 227 1404 74 1384 . 110 . 90 220 830 483 566 315 740 427 . 512 668 271 256 316 397 286 534 923 490 798 Destroy 0b10 Robot/C 3940 | . 200 . 180 . 60 160 100 580 100 . . 180 480 . . . . . . 440 160 80 60 180 . 280 . 100 . 80 . . . 80 . 60 80 . 20 100 . . . . . . 80 60 40 Destroy 0b10 Robot/NC 490 | 10 15 . 25 . 10 . 15 . . 20 . . . 35 . . . . 5 40 10 40 10 40 . 50 . . . . 10 . 10 . 15 . 5 . 25 . 25 10 . 15 5 10 . 20 15 Destroy Leader 474 | . 42 . 30 . 12 10 24 30 20 4 . 30 30 4 . . . . . 46 . . 12 22 . 76 . 10 . 10 . . . 10 . . 12 . 18 10 2 . . 4 2 . . 2 2 Allied During Kill 1192 | . . . 7 . . 8 . 56 . . . 27 31 . . . . . . 466 160 117 76 . . 190 . . . . . . . . . 4 20 . . . . . . . . . 30 . . Trap Triggered on 0b10 40 | . . . . . . . . . . . . . . . . . . . . . . . . . . . . . . . . . . . . . . . . . . . . . . 40 . . . Successful Hack 2165 | . 28 . 15 . 24 5 12 10 . 111 . 97 . 60 . . . . 95 . . . 10 102 . 221 . . . . 104 14 171 14 86 22 64 . 217 8 66 68 8 36 90 178 18 39 172 Select Force Hacks 220 | . 60 . . . . . . . . 60 . . . . . . . . . . . . . . . . . . . . 20 . . . 30 . 50 . . . . . . . . . . . . Disable Machine 585 | . . . . . . . . 15 . 15 . . 15 . . . . . 15 . 15 90 30 15 . 30 . . . . . 15 . 15 . 15 60 . . . . 45 15 15 60 90 . 15 . Anti-Garrison Action 2900 | . . . . . . 150 . 200 . . . 150 200 . . . . . 200 . . . . 200 . . . . . . . 350 . 250 . 350 . . . 250 . . 200 . . . 350 . 50 Destroy Structure 3367 | . 3 . 10 . 18 122 21 137 14 40 31 33 134 17 . . . . 19 12 19 11 14 80 74 132 . . . . 26 256 62 62 34 169 46 . 82 120 58 58 33 102 84 96 415 234 489 Partial Spotted 1920 | . 15 . 60 . 45 . 90 . 15 150 . 60 60 15 . . . . 15 45 . . 15 120 . 90 . . . . 60 90 60 15 105 45 60 . 120 15 75 60 15 195 30 90 . 75 15 Lose Combat Pursuer 3210 | . 105 . 120 . 165 15 150 30 30 105 . 240 30 90 30 . . . 60 30 30 . . 645 . 315 . . . . . 105 180 120 45 75 30 . 30 165 45 15 45 30 15 30 30 45 15 Influence Decreases 19683 | 5 368 105 270 177 255 128 829 162 532 873 210 604 244 818 261 74 47 . 306 782 546 463 221 1266 244 898 256 93 344 10 300 . 1180 50 867 110 1154 . 386 112 753 456 40 553 367 398 124 704 738 Entered New Map 5839 | . 2 65 . 108 . 28 217 2 462 299 117 . 64 452 131 24 47 . . 53 176 149 81 66 174 30 216 63 344 . 30 . 395 40 309 30 346 . . 32 299 88 . 121 53 18 44 390 274 Time Decay 7956 | 5 346 20 230 69 235 . 302 . 60 434 53 254 . 206 130 50 . . 286 440 170 294 20 410 70 428 40 30 . 10 130 . 278 . 152 . 278 . 346 . 334 232 . 422 294 270 . 294 334 Search Patrol Dispatched 500 | . . . . . . . . . . 100 . . . . . . . . . . . . . 100 . 100 . . . . . . . . . . . . . . 100 . . . . 100 . . . Lost Part 770 | . 20 20 20 . 20 60 10 80 10 20 . . 20 . . . . . 10 . 20 . 60 70 . 50 . . . . . . . 10 . . . . 10 80 . . 40 10 . . . 20 110 Lost Ally 1761 | . . . 20 . . 40 . 80 . 20 40 200 160 10 . . . . 10 139 180 20 60 20 . 290 . . . . 2 . 100 . 30 80 80 . 30 . 20 . . . 20 10 80 . 20 Purge Threat 2857 | . . . . . . . 300 . . . . 150 . 150 . . . . . 150 . . . 600 . . . . . . 138 . 407 . 376 . 450 . . . . 136 . . . . . . . Squads Dispatched 130 | . 4 1 1 . 4 . 6 . . 9 . 6 . 3 . . . . 6 2 . . 4 13 . 10 . . . . 5 . 5 . 6 . 4 . 8 . 3 4 . 1 6 5 . 6 8 Investigation 52 | . 2 . . . 2 . 2 . . 5 . 2 . 2 . . . . 3 1 . . . 7 . 5 . . . . 2 . 3 . 5 . 2 . 5 . 1 . . . . . . 1 2 Extermination 38 | . . . . . . . . . . 3 . 1 . 1 . . . . 2 . . . . 3 . 4 . . . . 2 . 2 . 1 . 2 . . . 2 2 . . 4 3 . 2 4 Reinforcement 32 | . 2 . 1 . 2 . 4 . . 1 . . . . . . . . 1 1 . . 2 2 . 1 . . . . 1 . . . . . . . 3 . . 2 . 1 2 2 . 2 2 Assault 7 | . . 1 . . . . . . . . . 2 . . . . . . . . . . 2 1 . . . . . . . . . . . . . . . . . . . . . . . 1 . Garrison 1 | . . . . . . . . . . . . 1 . . . . . . . . . . . . . . . . . . . . . . . . . . . . . . . . . . . . . Intercept . | . . . . . . . . . . . . . . . . . . . . . . . . . . . . . . . . . . . . . . . . . . . . . . . . . . Searches Triggered 5 | . . . . . . . . . . 1 . . . . . . . . . . . . . 1 . 1 . . . . . . . . . . . . . . 1 . . . . 1 . . . Unchained Authorized 7 | . . . . . . . . . . . . 1 . 1 . . . . 1 . . . . . . 1 . . . . 1 . . . . . . . . . 1 . . . . . . 1 . Data Miner Redirects 6 | . . . . . . . . . . . . . . . . . . . . . . . . 3 . 2 . . . . . . . . 1 . . . . . . . . . . . . . . Construction Impeded 2 | . . . . . . . . . . . . . . . . . . . . . . . . 1 . 1 . . . . . . . . . . . . . . . . . . . . . . . Haulers Reinforced 2 | . . . . . . . . . . . . . . . . . . . . . . . . . . . . . . . . . . . . . . . 1 . . . . 1 . . . . . Active Scanning Responses . | . . . . . . . . . . . . . . . . . . . . . . . . . . . . . . . . . . . . . . . . . . . . . . . . . . Cargo Convoy Interrupts . | . . . . . . . . . . . . . . . . . . . . . . . . . . . . . . . . . . . . . . . . . . . . . . . . . . Stealth | -11 -10 -10 -9 -9 -8 -8 -8 -8 -8 -7 -7 -7 -7 -7 -7 -7 -7 -6 -6 -6 -6 -6 -6 -5 -5 -5 -5 -5 -5 -4 -4 -4 -4 -4 -4 -4 -4 -4 -3 -3 -3 -3 -3 -2 -2 -2 -2 -1 -1 --------- Run | Yrd Mat Min Mat Min Mat Gar Mat Gar Mat Fac Was Fac Gar Fac Low Low Dat Pro Fac Ext Cet Arc Hub Fac Was Fac Upp Upp War Pro Fac Gar Fac Gar Fac Gar Arm Lab Res Gar Res Tes Gar Res Qua Sec Gar Acc Com Distress Signals 80 | . 6 . 2 . 3 . 3 . 2 2 . 1 1 . . . . . . 2 2 . . 1 . 3 . . . . 1 . 4 . 2 . 2 . 7 . 2 1 . 11 4 . 1 . 17 Communications Jammed . | . . . . . . . . . . . . . . . . . . . . . . . . . . . . . . . . . . . . . . . . . . . . . . . . . . Distress Signals . | . . . . . . . . . . . . . . . . . . . . . . . . . . . . . . . . . . . . . . . . . . . . . . . . . . Times Spotted 984 | . 34 7 35 . 20 12 33 39 8 21 7 13 24 10 3 . . . 6 26 10 27 21 64 6 49 . 5 9 4 11 32 21 31 16 28 20 . 39 60 28 27 53 20 8 23 24 17 33 Peak Tracking Total 29 | . 6 4 11 . 9 4 11 12 6 9 6 7 10 7 3 . . . 3 6 5 1 21 12 5 9 . 5 13 4 9 17 10 19 7 12 11 . 10 19 7 7 29 5 6 7 17 6 8 Tactical Retreats 161 | . 4 . 5 . 6 1 6 4 2 6 1 6 2 1 2 . . . 4 2 1 . . 17 . 10 . . . . . 5 5 4 5 4 3 . 6 6 10 6 5 6 2 7 2 3 2 ECM-based Alert Blocks 297 | . . . 3 . 4 . 5 14 . 5 . 2 . . . . . . . . . . . . . . . . . . . 26 1 10 7 12 10 . 27 39 22 19 53 8 6 13 8 1 2 Traps | -11 -10 -10 -9 -9 -8 -8 -8 -8 -8 -7 -7 -7 -7 -7 -7 -7 -7 -6 -6 -6 -6 -6 -6 -5 -5 -5 -5 -5 -5 -4 -4 -4 -4 -4 -4 -4 -4 -4 -3 -3 -3 -3 -3 -2 -2 -2 -2 -1 -1 ------- Run | Yrd Mat Min Mat Min Mat Gar Mat Gar Mat Fac Was Fac Gar Fac Low Low Dat Pro Fac Ext Cet Arc Hub Fac Was Fac Upp Upp War Pro Fac Gar Fac Gar Fac Gar Arm Lab Res Gar Res Tes Gar Res Qua Sec Gar Acc Com Traps Triggered 63 | . 2 . . . . 4 . 2 . 1 . 1 3 . . . . . 2 3 . . . 3 . 1 . . . . . 8 5 9 . 2 . . . 11 . . 5 . . 1 . . . Indirectly . | . . . . . . . . . . . . . . . . . . . . . . . . . . . . . . . . . . . . . . . . . . . . . . . . . . Trap Hack Attempts . | . . . . . . . . . . . . . . . . . . . . . . . . . . . . . . . . . . . . . . . . . . . . . . . . . . Triggered . | . . . . . . . . . . . . . . . . . . . . . . . . . . . . . . . . . . . . . . . . . . . . . . . . . . Disarmed 4 | . . . . . . . . . . . . . . . . . . . . . . . . . . . . . . . . . . . . . 4 . . . . . . . . . . . . Reprogrammed 4 | . . . . . . . . . . . . . . . . . . . . . . . . . . . . . . . . . . . . . . . . . . . . . . 4 . . . Reused 4 | . . . . . . . . . . . . . . . . . . . . . . . . . . . . . . . . . . . . . . . . . . . . . . 4 . . . Traps Extracted . | . . . . . . . . . . . . . . . . . . . . . . . . . . . . . . . . . . . . . . . . . . . . . . . . . . Installed . | . . . . . . . . . . . . . . . . . . . . . . . . . . . . . . . . . . . . . . . . . . . . . . . . . . Triggered 4 | . . . . . . . . . . . . . . . . . . . . . . . . . . . . . . . . . . . . . . . . . . . . . . 4 . . . Machines | -11 -10 -10 -9 -9 -8 -8 -8 -8 -8 -7 -7 -7 -7 -7 -7 -7 -7 -6 -6 -6 -6 -6 -6 -5 -5 -5 -5 -5 -5 -4 -4 -4 -4 -4 -4 -4 -4 -4 -3 -3 -3 -3 -3 -2 -2 -2 -2 -1 -1 ---------- Run | Yrd Mat Min Mat Min Mat Gar Mat Gar Mat Fac Was Fac Gar Fac Low Low Dat Pro Fac Ext Cet Arc Hub Fac Was Fac Upp Upp War Pro Fac Gar Fac Gar Fac Gar Arm Lab Res Gar Res Tes Gar Res Qua Sec Gar Acc Com Machines Disabled 90 | . . . . . . 3 . 6 . 1 . 1 5 . . . . . 1 . 1 6 2 1 . 2 . . . . . 10 . 5 . 10 4 . . 4 . 3 4 1 4 6 7 1 2 Max in Single Turn 2 | . . . . . . 1 . 2 . 1 . . 1 . . . . . 1 . 1 1 1 1 . . . . . . . 2 . 1 . 2 1 . . 1 . 1 1 1 1 1 2 1 2 Garrison Access 26 | . . . . . . . . . . 3 . 2 . 2 . . . . 1 . . . 1 3 . 2 . . . . . . 1 . 1 . . . 2 . 1 . . 3 1 . . 3 . Garrison Relay 30 | . . . . . . 3 . 2 . . . . 3 . . . . . . . . . . . . . . . . . . 5 . 4 . 4 . . . 3 . . 3 . . . 3 . . Phase Generator 5 | . . . . . . . . 1 . . . . . . . . . . . . . . . . . . . . . . . 1 . . . 1 . . . . . . . . . . 1 . 1 Network Hub 1 | . . . . . . . . . . . . . . . . . . . . . . . 1 . . . . . . . . . . . . . . . . . . . . . . . . . . Machines Repaired . | . . . . . . . . . . . . . . . . . . . . . . . . . . . . . . . . . . . . . . . . . . . . . . . . . . Machines Dismantled 2 | . . . . . . . . . . . . . . . . . . . . . 1 . 1 . . . . . . . . . . . . . . . . . . . . . . . . . . Machines Sabotaged . | . . . . . . . . . . . . . . . . . . . . . . . . . . . . . . . . . . . . . . . . . . . . . . . . . . Overloaded Fab Kills 11 | . . . . . . . . . . . . . . . . . . . . . . . . . . . . . . . . . . . . . 11 . . . . . . . . . . . . Hacking | -11 -10 -10 -9 -9 -8 -8 -8 -8 -8 -7 -7 -7 -7 -7 -7 -7 -7 -6 -6 -6 -6 -6 -6 -5 -5 -5 -5 -5 -5 -4 -4 -4 -4 -4 -4 -4 -4 -4 -3 -3 -3 -3 -3 -2 -2 -2 -2 -1 -1 --------- Run | Yrd Mat Min Mat Min Mat Gar Mat Gar Mat Fac Was Fac Gar Fac Low Low Dat Pro Fac Ext Cet Arc Hub Fac Was Fac Upp Upp War Pro Fac Gar Fac Gar Fac Gar Arm Lab Res Gar Res Tes Gar Res Qua Sec Gar Acc Com Machines Accessed 343 | . 8 . 9 . 10 1 10 2 . 29 . 14 2 12 . . 4 . 16 6 . . 1 23 . 22 . 2 5 . 16 1 22 1 17 2 11 . 20 2 12 12 1 5 11 13 2 8 11 Terminals 216 | . 5 . 7 . 7 1 7 2 . 16 . 7 2 6 . . . . 12 6 . . 1 12 . 15 . . . . 10 1 14 1 10 2 9 . 8 2 6 9 1 2 7 12 2 4 10 Fabricators 23 | . . . . . . . . . . 1 . 2 . 1 . . . . 1 . . . . 4 . 3 . . . . 3 . 1 . 2 . 1 . 2 . 2 . . . . . . . . Repair Stations 28 | . 1 . . . 1 . 1 . . 2 . . . 2 . . . . 1 . . . . 3 . 1 . . . . 1 . 4 . 2 . 1 . 4 . 2 . . . 1 . . 1 . Recycling Units 8 | . 2 . . . . . . . . 3 . . . . . . . . . . . . . . . . . . . . . . 1 . . . . . . . 1 . . . . . . . 1 Scanalyzers 22 | . . . 2 . 1 . 1 . . 4 . 2 . 1 . . . . 1 . . . . . . 1 . . . . 1 . . . 1 . . . 3 . . 2 . . 2 . . . . Garrison Access 35 | . . . . . 1 . 1 . . 3 . 3 . 2 . . . . 1 . . . . 4 . 2 . . . . 1 . 2 . 2 . . . 3 . 1 1 . 3 1 1 . 3 . Total Hacks 1218 | . 28 . 28 . 35 1 40 5 . 77 . 31 4 35 . . 32 . 49 18 . . 3 95 . 93 . 7 5 . 59 1 77 4 94 6 64 . 78 5 37 43 2 15 37 40 8 20 42 Successful 792 | . 21 . 18 . 23 1 36 1 . 51 . 20 1 26 . . 32 . 32 6 . . 1 51 . 56 . 7 5 . 40 1 55 2 60 3 47 . 54 2 27 23 2 6 26 25 3 9 19 Failed 416 | . 7 . 9 . 12 . 3 4 . 25 . 10 3 9 . . . . 16 12 . . 2 44 . 36 . . . . 18 . 21 2 33 3 17 . 24 3 10 20 . 9 10 15 5 11 23 Catastrophic 45 | . . . 1 . . . . . . 1 . 1 . 1 . . . . 1 2 . . . 14 . 4 . . . . 2 . 1 . 4 . 2 . . 2 . 1 . 1 . 1 2 1 3 Database Lockouts 10 | . . . 1 . . . 1 . . 1 . 1 . . . . . . 1 . . . . . . 1 . . . . 1 . 1 . 1 . . . . . . . . . 1 . . . . Manual 699 | . 20 . 24 . 21 . 15 3 . 38 . 16 2 16 . . . . 32 11 1 . 3 60 . 53 . . 1 . 37 1 42 4 62 3 42 . 29 3 22 32 1 4 20 29 7 9 36 Terminals 860 | . 23 . 24 . 28 1 25 5 . 52 . 16 4 20 . . . . 42 18 . . 3 68 . 66 . . . . 46 1 55 4 68 6 62 . 35 5 20 33 2 7 25 37 8 13 38 Fabricators 69 | . . . . . . . . . . 2 . 5 . 5 . . . . 3 . . . . 15 . 11 . . . . 6 . 3 . 5 . 1 . 5 . 8 . . . . . . . . Repair Stations 86 | . 2 . . . 3 . 8 . . 7 . . . 5 . . . . 1 . . . . 6 . 5 . . . . 3 . 13 . 4 . 1 . 21 . 4 . . . 2 . . 1 . Recycling Units 17 | . 3 . . . . . . . . 4 . . . . . . . . . . . . . . . . . . . . . . 2 . . . . . . . 4 . . . . . . . 4 Scanalyzers 79 | . . . 4 . 3 . 5 . . 9 . 4 . 3 . . . . 1 . . . . . . 7 . . . . 3 . . . 9 . . . 13 . . 9 . . 9 . . . . Garrison Access 63 | . . . . . 1 . 2 . . 3 . 6 . 2 . . . . 2 . . . . 6 . 4 . . . . 1 . 4 . 8 . . . 4 . 1 1 . 8 1 3 . 6 . Terminal Hacks 236 | . 5 . 1 . 6 1 11 1 . 14 . 2 1 5 . . 32 . 10 4 . . . 14 . 9 . 7 5 . 13 1 16 1 17 2 22 . 5 1 2 4 1 2 3 10 1 1 6 Record 20 | . . . . . . . . . . . . . . . . . 11 . . . . . . . . . . 6 3 . . . . . . . . . . . . . . . . . . . . Part Schematic 21 | . . . . . . . . . . 3 . . . . . . 13 . . . . . . 1 . 3 . . . . 1 . . . . . . . . . . . . . . . . . . Robot Schematic 6 | . . . . . . . . . . . . . . . . . 5 . . . . . . . . . . . . . 1 . . . . . . . . . . . . . . . . . . Robot Analysis 12 | . 2 . . . . . . . . 4 . . . . . . . . . . . . . . . . . . . . 2 . 2 . 2 . . . . . . . . . . . . . . Prototype ID Bank 23 | . 1 . . . 2 . 2 . . 1 . . . . . . 3 . 3 1 . . . 1 . 1 . . . . 2 . 1 . 1 . 3 . . . . . . 1 . . . . . Open Door 11 | . . . . . . 1 . . . . . . . . . . . . . 1 . . . . . . . 1 2 . . . . . . . . . . . . 1 . . . 4 . . 1 Level Access Points 1 | . . . . . . . . . . . . . . . . . . . . . . . . . . . . . . . . . . . . . 1 . . . . . . . . . . . . Branch Access Points 7 | . . . . . 1 . 1 . . . . . . 1 . . . . . . . . . . . 1 . . . . . . . . . . 1 . . . 1 . . . . . . 1 . Emergency Access Points 7 | . . . . . 1 . . 1 . . . . 1 . . . . . . . . . . . . . . . . . . . . . . . 2 . . 1 . . . . . 1 . . . Machine Index 6 | . 1 . . . . . . . . . . . . . . . . . . . . . . 1 . . . . . . . . . . 1 . . . 1 . . . . . 1 . . . 1 Terminal Index 17 | . 1 . 1 . 1 . 1 . . 1 . . . 1 . . . . . . . . . 1 . 1 . . . . 1 . 1 . 1 . 2 . . . 1 1 . . . 1 . . 1 Fabricator Index 3 | . . . . . . . . . . . . . . . . . . . 1 . . . . . . 1 . . . . . . 1 . . . . . . . . . . . . . . . . Repair Station Index 4 | . . . . . . . . . . . . . . 1 . . . . . . . . . . . . . . . . 1 . 1 . 1 . . . . . . . . . . . . . . Scanalyzer Index 3 | . . . . . . . . . . . . 1 . . . . . . . . . . . 1 . . . . . . . . 1 . . . . . . . . . . . . . . . . Garrison Index 4 | . . . . . . . . . . . . . . . . . . . . . . . . . . . . . . . 1 . 1 . 1 . . . . . . . . . . 1 . . . Alert Level 9 | . . . . . . . 1 . . . . . . . . . . . . . . . . 2 . . . . . . 1 . 2 . 1 . 1 . . . . . . . 1 . . . . Unreport Threat 20 | . . . . . . . 2 . . . . 1 . 1 . . . . . 1 . . . 4 . . . . . . 1 . 3 . 3 . 3 . . . . 1 . . . . . . . Locate Traps 7 | . . . . . . . 1 . . . . . . . . . . . 1 . . . . 1 . . . . . . . . . . 1 . 1 . . . . . . . . 1 . . 1 Disarm Traps 1 | . . . . . . . . . . . . . . . . . . . . . . . . . . . . . . . . . . . . . 1 . . . . . . . . . . . . Reprogram Traps 1 | . . . . . . . . . . . . . . . . . . . . . . . . . . . . . . . . . . . . . . . . . . . . . . 1 . . . Maintenance Status 1 | . . . . . . . . . . . . . . . . . . . . . . . . . . . . . . . . . . . . . . . . . . . . . . . . . 1 Surveillance Status 1 | . . . . . . . . . . . . . . . . . . . 1 . . . . . . . . . . . . . . . . . . . . . . . . . . . . . . Recall Investigation 1 | . . . . . . . . . . . . . . . . . . . . . . . . . . . . . . . . . 1 . . . . . . . . . . . . . . . . Recall Extermination 5 | . . . . . . . . . . 1 . . . . . . . . 1 . . . . 1 . . . . . . . . . . . . 2 . . . . . . . . . . . . Recall Reinforcements 1 | . . . . . . . . . . . . . . . . . . . . 1 . . . . . . . . . . . . . . . . . . . . . . . . . . . . . Registered Components 9 | . . . . . 1 . 1 . . 1 . . . . . . . . 1 . . . . . . 1 . . . . 1 . 1 . 1 . . . 1 . . . . . . . . . . Registered Prototypes 3 | . . . . . . . . . . 1 . . . . . . . . 1 . . . . . . . . . . . . . . . 1 . . . . . . . . . . . . . . Zone Layout 26 | . . . . . . . 2 . . 2 . . . 1 . . . . 1 . . . . 1 . 1 . . . . 1 . 1 . 3 . 5 . 3 . . 1 . 1 1 1 . . 1 Garrison Registry 5 | . . . . . . . . . . . . . . . . . . . . . . . . . . . . . . . . 1 . 1 . 1 . . . . . . 1 . . . 1 . . Patrol Navigation 1 | . . . . . . . . . . . . . . . . . . . . . . . . . . . . . . . . . . . . 1 . . . . . . . . . . . . . Fabricator Hacks 40 | . . . . . . . . . . 1 . 3 . 4 . . . . 2 . . . . 7 . 6 . . . . 3 . 2 . 3 . . . 3 . 6 . . . . . . . . Network Status 1 | . . . . . . . . . . . . . . . . . . . . . . . . . . . . . . . . . . . . . . . . . 1 . . . . . . . . Load Schematic 25 | . . . . . . . . . . 1 . 2 . 2 . . . . 1 . . . . 5 . 4 . . . . 2 . 1 . 2 . . . 2 . 3 . . . . . . . . Build 14 | . . . . . . . . . . . . 1 . 2 . . . . 1 . . . . 2 . 2 . . . . 1 . 1 . 1 . . . 1 . 2 . . . . . . . . Repair Station Hacks 56 | . 2 . . . 2 . 8 . . 6 . . . 4 . . . . . . . . . 2 . 2 . . . . 1 . 11 . 2 . . . 11 . 3 . . . 2 . . . . Scan Component 29 | . 1 . . . 1 . 4 . . 3 . . . 2 . . . . . . . . . 1 . 1 . . . . 1 . 6 . 1 . . . 6 . 1 . . . 1 . . . . Repair 26 | . 1 . . . 1 . 4 . . 3 . . . 2 . . . . . . . . . 1 . 1 . . . . . . 5 . 1 . . . 5 . 1 . . . 1 . . . . Refit 1 | . . . . . . . . . . . . . . . . . . . . . . . . . . . . . . . . . . . . . . . . . 1 . . . . . . . . Recycling Unit Hacks 4 | . . . . . . . . . . . . . . . . . . . . . . . . . . . . . . . . . 2 . . . . . . . 2 . . . . . . . . Process 2 | . . . . . . . . . . . . . . . . . . . . . . . . . . . . . . . . . 1 . . . . . . . 1 . . . . . . . . Retrieve Matter 2 | . . . . . . . . . . . . . . . . . . . . . . . . . . . . . . . . . 1 . . . . . . . 1 . . . . . . . . Scanalyzer 62 | . . . 4 . 3 . 4 . . 9 . 3 . 3 . . . . 1 . . . . . . 6 . . . . 3 . . . 7 . . . 9 . . 3 . . 7 . . . . Insert Component 26 | . . . 1 . 1 . 1 . . 3 . 1 . 1 . . . . . . . . . . . 2 . . . . 1 . . . 3 . . . 4 . . 2 . . 6 . . . . Analyze 20 | . . . 2 . 1 . 1 . . 3 . 1 . 1 . . . . . . . . . . . 2 . . . . 1 . . . 4 . . . 4 . . . . . . . . . . Retrieve Study 16 | . . . 1 . 1 . 2 . . 3 . 1 . 1 . . . . 1 . . . . . . 2 . . . . 1 . . . . . . . 1 . . 1 . . 1 . . . . Garrison Access Hacks 31 | . . . . . 1 . 1 . . 3 . 2 . 2 . . . . . . . . . 2 . 2 . . . . 1 . 2 . 2 . . . 3 . 1 1 . 3 1 1 . 3 . Unlock Access 9 | . . . . . 1 . 1 . . . . 1 . . . . . . . . . . . . . . . . . . 1 . 1 . 1 . . . 1 . . 1 . . . 1 . . . Seal Access 22 | . . . . . . . . . . 3 . 1 . 2 . . . . . . . . . 2 . 2 . . . . . . 1 . 1 . . . 2 . 1 . . 3 1 . . 3 . Unauthorized Hacks 363 | . 14 . 13 . 11 . 12 . . 18 . 10 . 8 . . . . 19 2 . . 1 26 . 31 . . . . 19 . 22 1 29 1 25 . 23 1 13 15 1 1 13 14 2 5 13 Terminals 314 | . 12 . 13 . 10 . 11 . . 15 . 7 . 8 . . . . 16 2 . . 1 19 . 27 . . . . 16 . 21 1 23 1 23 . 18 1 10 14 1 1 13 14 2 4 10 Track 33 | . . . 2 . . . 2 . . . . . . . . . . . 1 . . . . 3 . 2 . . . . 1 . 2 . 3 . 5 . 3 . . 2 . . 2 3 . . 2 Assimilate 37 | . 1 . . . . . . . . 3 . 1 . 1 . . . . 1 . . . . 3 . 3 . . . . 2 . 2 . 5 . 4 . 2 . 3 1 . . 2 1 . . 2 Botnet 119 | . 5 . 4 . 4 . 3 . . 7 . 1 . 2 . . . . 8 2 . . 1 7 . 14 . . . . 8 . 11 . 7 . 6 . 7 . 2 4 . 1 4 5 . 2 4 Disrupt 9 | . . . . . . . . . . . . . . . . . . . . . . . . 1 . 1 . . . . . . . . 2 . 3 . . . . . . . . . 1 . 1 Operators 7 | . 1 . . . . . . . . . . . . . . . . . 1 . . . . . . 2 . . . . . . . . 1 . . . . . . 1 . . . . . . 1 Skim 103 | . 5 . 7 . 6 . 5 . . 5 . 5 . 5 . . . . 5 . . . . 5 . 5 . . . . 5 . 6 . 5 . 5 . 6 . 5 6 . . 5 5 . 2 . Search 1 | . . . . . . . 1 . . . . . . . . . . . . . . . . . . . . . . . . . . . . . . . . . . . . . . . . . . Override 5 | . . . . . . . . . . . . . . . . . . . . . . . . . . . . . . . . . . 1 . 1 . . . 1 . . 1 . . . 1 . . Fabricators 23 | . . . . . . . . . . 1 . 2 . . . . . . 1 . . . . 4 . 4 . . . . 3 . 1 . 2 . 1 . 2 . 2 . . . . . . . . Prioritize 9 | . . . . . . . . . . . . 1 . . . . . . . . . . . 1 . 2 . . . . 1 . 1 . 1 . . . 1 . 1 . . . . . . . . Overload 1 | . . . . . . . . . . . . . . . . . . . . . . . . . . . . . . . . . . . . . 1 . . . . . . . . . . . . Download 1 | . . . . . . . . . . . . . . . . . . . . . . . . . . . . . . . 1 . . . . . . . . . . . . . . . . . . Recompile 12 | . . . . . . . . . . 1 . 1 . . . . . . 1 . . . . 3 . 2 . . . . 1 . . . 1 . . . 1 . 1 . . . . . . . . Repair Stations 10 | . . . . . 1 . . . . . . . . . . . . . 1 . . . . 2 . . . . . . . . . . 2 . 1 . 2 . . . . . . . . 1 . Mechanics 1 | . . . . . . . . . . . . . . . . . . . . . . . . . . . . . . . . . . . . . . . . . . . . . . . . 1 . Patch 9 | . . . . . 1 . . . . . . . . . . . . . 1 . . . . 2 . . . . . . . . . . 2 . 1 . 2 . . . . . . . . . . Recycling Units 8 | . 2 . . . . . . . . 2 . . . . . . . . . . . . . . . . . . . . . . . . . . . . . . 1 . . . . . . . 3 Reject 1 | . . . . . . . . . . . . . . . . . . . . . . . . . . . . . . . . . . . . . . . . . . . . . . . . . 1 Recyclers 2 | . . . . . . . . . . . . . . . . . . . . . . . . . . . . . . . . . . . . . . . . . 1 . . . . . . . 1 Mask 1 | . . . . . . . . . . . . . . . . . . . . . . . . . . . . . . . . . . . . . . . . . . . . . . . . . 1 Tunnel 4 | . 2 . . . . . . . . 2 . . . . . . . . . . . . . . . . . . . . . . . . . . . . . . . . . . . . . . . Scanalyzers 2 | . . . . . . . . . . . . . . . . . . . . . . . . . . . . . . . . . . . 1 . . . . . . 1 . . . . . . . Researchers 1 | . . . . . . . . . . . . . . . . . . . . . . . . . . . . . . . . . . . . . . . . . . 1 . . . . . . . Extract 1 | . . . . . . . . . . . . . . . . . . . . . . . . . . . . . . . . . . . 1 . . . . . . . . . . . . . . Garrison Access 6 | . . . . . . . 1 . . . . 1 . . . . . . 1 . . . . 1 . . . . . . . . . . 1 . . . 1 . . . . . . . . . . Reprogram 4 | . . . . . . . 1 . . . . 1 . . . . . . . . . . . . . . . . . . . . . . 1 . . . 1 . . . . . . . . . . Jam 2 | . . . . . . . . . . . . . . . . . . . 1 . . . . 1 . . . . . . . . . . . . . . . . . . . . . . . . . Data Cores Recovered 3 | . . . . . . . . . . . . . . . . . . . . . . . . . . 1 . . . . . . 1 . . . . . . . . . . . . 1 . . . Used 1 | . . . . . . . . . . . . . . . . . . . . . . . . . . 1 . . . . . . . . . . . . . . . . . . . . . . . Hacking Detections 255 | . 6 . 8 . 8 . 9 2 . 23 . 9 2 9 . . . . 12 5 . . 1 17 . 18 . . . . 12 . 18 1 10 1 7 . 16 2 10 10 1 3 8 9 1 7 10 Full Trace Events 21 | . . . 1 . 2 . . 1 . 2 . 1 1 2 . . . . . . . . . 1 . 3 . . . . . . 2 . . . . . 1 1 . . . . . . 1 1 1 Feedback Events 1 | . . . . . . . . . . . . . . . . . . . . . . . . . . . . . . . . . . . . . . . . . . . . . . . . 1 . Hackware Fried 1 | . . . . . . . . . . . . . . . . . . . . . . . . . . . . . . . . . . . . . . . . . . . . . . . . 1 . Feedback Blocked . | . . . . . . . . . . . . . . . . . . . . . . . . . . . . . . . . . . . . . . . . . . . . . . . . . . Robot Schematics Acquired 9 | . . . . . . . . . . . . . . . . . 5 . . . . . . . . . . . . . 2 . . . . . . . . . . . . . 2 . . . . Robots Built . | . . . . . . . . . . . . . . . . . . . . . . . . . . . . . . . . . . . . . . . . . . . . . . . . . . Authchips . | . . . . . . . . . . . . . . . . . . . . . . . . . . . . . . . . . . . . . . . . . . . . . . . . . . Time 134 | . . . . . . . . . . . . . . . . . . . 134 . . . . . . . . . . . . . . . . . . . . . . . . . . . . . . Total Robot Build Rating . | . . . . . . . . . . . . . . . . . . . . . . . . . . . . . . . . . . . . . . . . . . . . . . . . . . Part Schematics Acquired 52 | . . . 1 . 1 . 1 . . 6 . 1 . 1 . . 13 . . . . . . 1 . 5 . . . . 2 . . . 8 . . . 3 . . . . . 9 . . . . Parts Built 20 | . . . . . . . . . . . . 2 . 4 . . . . . . . . . 2 . 4 . . . . 1 . 1 . 1 . . . 1 . 4 . . . . . . . . Authchips 11 | . . . . . . . . . . . . 1 . 1 . . . . . . . . . 2 . 2 . . . . 1 . . . 1 . . . 1 . 2 . . . . . . . . Time 543 | . . . . . . . . . . . . 23 . 59 . . . . . . . . . 106 . 87 . . . . 25 . 31 . 76 . . . 102 . 34 . . . . . . . . Total Part Build Rating 118 | . . . . . . . . . . . . 10 . 18 . . . . . . . . . 13 . 28 . . . . 5 . 7 . 5 . . . 8 . 24 . . . . . . . . Part Studies Acquired 16 | . . . 1 . 1 . 2 . . 3 . 1 . 1 . . . . 1 . . . . . . 2 . . . . 1 . . . . . . . 1 . . 1 . . 1 . . . . Parts Repaired 26 | . 1 . . . 1 . 4 . . 3 . . . 2 . . . . . . . . . 1 . 1 . . . . . . 5 . 1 . . . 5 . 1 . . . 1 . . . . Time 924 | . 32 . . . 136 . 152 . . 64 . . . 86 . . . . . . . . . 35 . 19 . . . . . . 173 . 28 . . . 141 . 22 . . . 36 . . . . Parts Recycled . | . . . . . . . . . . . . . . . . . . . . . . . . . . . . . . . . . . . . . . . . . . . . . . . . . . Recycled Matter 5 | . . . . . . . . . . . . . . . . . . . . . . . . . . . . . . . . . . . . . . . . . 5 . . . . . . . . Retrieved Matter 5 | . . . . . . . . . . . . . . . . . . . . . . . . . . . . . . . . . . . . . . . . . 5 . . . . . . . . Retrieved Components . | . . . . . . . . . . . . . . . . . . . . . . . . . . . . . . . . . . . . . . . . . . . . . . . . . . Parts Scanalyzed 17 | . . . 1 . 1 . 1 . . 3 . 1 . 1 . . . . . . . . . . . 2 . . . . 1 . . . 3 . . . 3 . . . . . . . . . . Part Schematics Acquired 17 | . . . 1 . 1 . 1 . . 3 . 1 . 1 . . . . . . . . . . . 2 . . . . 1 . . . 3 . . . 3 . . . . . . . . . . Parts Damaged 3 | . . . . . 1 . . . . . . . . . . . . . . . . . . . . 1 . . . . . . . . 1 . . . . . . . . . . . . . . Bothacking | -11 -10 -10 -9 -9 -8 -8 -8 -8 -8 -7 -7 -7 -7 -7 -7 -7 -7 -6 -6 -6 -6 -6 -6 -5 -5 -5 -5 -5 -5 -4 -4 -4 -4 -4 -4 -4 -4 -4 -3 -3 -3 -3 -3 -2 -2 -2 -2 -1 -1 ------------ Run | Yrd Mat Min Mat Min Mat Gar Mat Gar Mat Fac Was Fac Gar Fac Low Low Dat Pro Fac Ext Cet Arc Hub Fac Was Fac Upp Upp War Pro Fac Gar Fac Gar Fac Gar Arm Lab Res Gar Res Tes Gar Res Qua Sec Gar Acc Com Used RIF Installer . | . . . . . . . . . . . . . . . . . . . . . . . . . . . . . . . . . . . . . . . . . . . . . . . . . . Robots Hacked 6 | . . . . . . . . . . 1 . . . . . . . . . . . 2 . 2 . . . . . . . . . . . . . . . . . . . . . . . . 1 Non-combat 5 | . . . . . . . . . . 1 . . . . . . . . . . . 2 . 2 . . . . . . . . . . . . . . . . . . . . . . . . . Combat . | . . . . . . . . . . . . . . . . . . . . . . . . . . . . . . . . . . . . . . . . . . . . . . . . . . Robot Hacks Applied 6 | . . . . . . . . . . 1 . . . . . . . . . . . 2 . 3 . . . . . . . . . . . . . . . . . . . . . . . . . find_chute 4 | . . . . . . . . . . 1 . . . . . . . . . . . . . 3 . . . . . . . . . . . . . . . . . . . . . . . . . check_alert 2 | . . . . . . . . . . . . . . . . . . . . . . 2 . . . . . . . . . . . . . . . . . . . . . . . . . . . Manual 1 | . . . . . . . . . . . . . . . . . . . . . . . . . . . . . . . . . . . . . . . . . . . . . . . . . 1 Relay Couplers Released 129 | . . . . . . 11 . 8 . . . 2 12 . . . . . . . . . 2 . . 2 . . . . . 23 . 16 . 17 . . . 13 . . 12 . . . 11 . . Machine Destruction 129 | . . . . . . 11 . 8 . . . 2 12 . . . . . . . . . 2 . . 2 . . . . . 23 . 16 . 17 . . . 13 . . 12 . . . 11 . . Fabnet Peak Effective % . | . . . . . . . . . . . . . . . . . . . . . . . . . . . . . . . . . . . . . . . . . . . . . . . . . . Robots Rewired 35 | . . . . . . 2 . 2 . . . . 9 . . . . . . 13 . . . . . . . . . . . . . . . . 5 . . . . . . . . . 4 . . Allies Hacked 3 | . . . . . . . . . . . . . . . . . . . . . . . . . . 1 . . . . . . . . . . . . . . . . . . . . 2 . . Hacks Repelled . | . . . . . . . . . . . . . . . . . . . . . . . . . . . . . . . . . . . . . . . . . . . . . . . . . . Allies | -11 -10 -10 -9 -9 -8 -8 -8 -8 -8 -7 -7 -7 -7 -7 -7 -7 -7 -6 -6 -6 -6 -6 -6 -5 -5 -5 -5 -5 -5 -4 -4 -4 -4 -4 -4 -4 -4 -4 -3 -3 -3 -3 -3 -2 -2 -2 -2 -1 -1 -------- Run | Yrd Mat Min Mat Min Mat Gar Mat Gar Mat Fac Was Fac Gar Fac Low Low Dat Pro Fac Ext Cet Arc Hub Fac Was Fac Upp Upp War Pro Fac Gar Fac Gar Fac Gar Arm Lab Res Gar Res Tes Gar Res Qua Sec Gar Acc Com Total Allies 123 | . . 1 . . . 2 2 2 . 3 20 1 9 1 . . . . 1 21 5 . . 2 19 1 . . . . 1 . 2 . 8 . 7 . 2 . 2 . . . 2 1 6 . 2 Largest Group 20 | . . 1 1 . . 2 2 4 . 1 20 12 5 1 . . . . 1 16 13 9 6 1 19 17 . . . . 1 . 1 . 2 4 5 1 2 . 1 . . . 1 1 3 . 1 Highest-Rated Group 861 | . . 31 31 . . 51 32 94 . 10 475 346 104 10 . . . . 26 613 861 654 436 10 684 634 . . . . 10 . 26 . 55 188 286 26 71 . 26 . . . 45 45 176 . 45 Highest-Rated Ally 159 | . . 31 31 . . 31 16 31 . 10 35 35 32 10 . . . . 26 159 159 152 96 10 50 50 . . . . 10 . 26 . 45 47 64 26 45 . 26 . . . 45 45 80 . 45 Initial Warlord ECA Mod 42 | . . . . . . . 3 3 8 7 7 7 7 12 12 12 12 11 11 11 11 11 11 10 10 10 10 10 10 9 9 9 18 18 24 24 32 32 31 31 34 34 34 38 38 38 38 42 42 Total Orders 32 | . . . . . . . . . . 4 . . 3 . . . . . . . 3 3 . . . . . . . . . . 5 . 2 . 4 . . . 6 . . . 2 . . . . STAY 20 | . . . . . . . . . . 3 . . 2 . . . . . . . . 1 . . . . . . . . . . 3 . 1 . 4 . . . 5 . . . 1 . . . . ROAM 2 | . . . . . . . . . . . . . . . . . . . . . 1 1 . . . . . . . . . . . . . . . . . . . . . . . . . . . FOLLOW 8 | . . . . . . . . . . 1 . . 1 . . . . . . . 2 1 . . . . . . . . . . . . 1 . . . . . 1 . . . 1 . . . . EXPLORE 2 | . . . . . . . . . . . . . . . . . . . . . . . . . . . . . . . . . 2 . . . . . . . . . . . . . . . . Ally Attacks 962 | . . . 15 . . 10 . 46 . . 150 71 35 . . . . . . 210 94 32 24 . 87 127 . . . . . . . . . 24 10 . . . . . . . . . 27 . . Total Damage 24802 | . . . 226 . . 216 . 575 . . 4640 1354 916 . . . . . . 4276 2572 1088 1013 . 3051 2937 . . . . . . . . . 645 242 . . . . . . . . . 1051 . . Kills 126 | . . . 4 . . 2 . 8 . . 13 9 6 . . . . . . 30 10 4 5 . 8 19 . . . . . . . . . 3 1 . . . . . . . . . 4 . . Allies Corrupted 7 | . . . . . . . . . . . . . 1 . . . . . . . . . . . . 3 . . . . . . . . . . 1 . . . 1 . . . . . 1 . . Allies Melted 2 | . . . . . . . . . . . . . . . . . . . . . . . . . . . . . . . . . . . . . . . . . . . . 2 . . . . . Intel | -11 -10 -10 -9 -9 -8 -8 -8 -8 -8 -7 -7 -7 -7 -7 -7 -7 -7 -6 -6 -6 -6 -6 -6 -5 -5 -5 -5 -5 -5 -4 -4 -4 -4 -4 -4 -4 -4 -4 -3 -3 -3 -3 -3 -2 -2 -2 -2 -1 -1 ------- Run | Yrd Mat Min Mat Min Mat Gar Mat Gar Mat Fac Was Fac Gar Fac Low Low Dat Pro Fac Ext Cet Arc Hub Fac Was Fac Upp Upp War Pro Fac Gar Fac Gar Fac Gar Arm Lab Res Gar Res Tes Gar Res Qua Sec Gar Acc Com Active Infowar (turns) 17919 | . 446 18 44 . 186 . 372 222 30 1054 178 639 497 426 264 104 17 122 624 1096 351 656 27 776 145 1055 83 79 174 91 275 49 588 20 336 198 600 4 817 81 734 535 78 1012 646 590 122 653 805 Optics 2824 | . . . . . . . . . . . . . . . . . . . . . . . . . . . . . . . . . . . . . . . . . . . . 12 646 586 122 653 805 Sensors 14754 | . . . . . . . . . 30 1036 178 639 497 413 264 104 17 122 622 1096 278 . . 605 145 1055 83 79 161 91 275 2 585 . 331 190 600 4 576 2 681 521 3 998 590 577 106 646 552 Terrain 49 | . . . . . . . . . . . . . . . . . . . . . . . . 49 . . . . . . . . . . . . . . . . . . . . . . . . . Structural 14738 | . 446 18 . . . . . . . 947 178 597 190 303 261 104 17 122 624 1096 347 656 27 666 136 1021 83 79 171 91 273 . 574 2 261 12 518 4 600 . 519 443 1 1007 630 429 107 647 531 Seismic 195 | . . . . . . . . . . . . . . . . . . . . . . . . 82 . . . . . . . . . . . . . . . . . . . . . . . 1 112 Jamming 2 | . . . . . . . . . . . . . . . . . . . . . . . . . . . . . . . . . 2 . . . . . . . . . . . . . . . . ECM 2885 | . . . 44 . 186 . 372 222 . 71 . 18 . 28 . . . . . . . . . . . . . . . . . 47 8 18 43 186 100 . 172 79 291 209 75 235 158 170 15 100 38 Robot Analysis Total 12 | . 2 . . . . . . . . 4 . . . . . . . . . . . . . . . . . . . . 2 . 2 . 2 . . . . . . . . . . . . . . Derelict Logs Recovered 13 | . . . . 3 . . . . . . . . . . 1 2 . 3 . . . . . . . . 2 1 . 1 . . . . . . . . . . . . . . . . . . . Drone Launches 12 | . . . . . . . . . . . . . . . . . . . . . . . . . . . . . . . . . 12 . . . . . . . . . . . . . . . . Drone Recoveries 4 | . . . . . . . . . . . . . . . . . . . . . . . . . . . . . . . . . 4 . . . . . . . . . . . . . . . . Exploration | -11 -10 -10 -9 -9 -8 -8 -8 -8 -8 -7 -7 -7 -7 -7 -7 -7 -7 -6 -6 -6 -6 -6 -6 -5 -5 -5 -5 -5 -5 -4 -4 -4 -4 -4 -4 -4 -4 -4 -3 -3 -3 -3 -3 -2 -2 -2 -2 -1 -1 ------------- Run | Yrd Mat Min Mat Min Mat Gar Mat Gar Mat Fac Was Fac Gar Fac Low Low Dat Pro Fac Ext Cet Arc Hub Fac Was Fac Upp Upp War Pro Fac Gar Fac Gar Fac Gar Arm Lab Res Gar Res Tes Gar Res Qua Sec Gar Acc Com Turns Passed 21540 | 34 856 107 490 144 510 359 679 511 131 1077 178 647 627 428 264 104 17 122 624 1096 351 656 42 981 145 1055 83 79 174 91 275 232 612 125 337 320 600 4 822 191 752 535 220 1037 646 590 122 653 805 Spaces Moved 44178 | 31 773 218 592 476 646 430 752 635 249 2168 230 1272 669 899 502 457 77 487 1214 1057 420 222 111 2344 234 2713 313 282 620 272 1260 711 1657 321 1320 676 1005 17 2046 531 1615 1119 413 3572 1548 1416 160 1661 1765 Core 528 | 31 357 29 7 . . . . 1 . . . . 16 . . . . . . . . 87 . . . . . . . . . . . . . . . . . . . . . . . . . . . Treads 1 | . . . . . . . . 1 . . . . . . . . . . . . . . . . . . . . . . . . . . . . . . . . . . . . . . . . . Legs . | . . . . . . . . . . . . . . . . . . . . . . . . . . . . . . . . . . . . . . . . . . . . . . . . . . Wheels . | . . . . . . . . . . . . . . . . . . . . . . . . . . . . . . . . . . . . . . . . . . . . . . . . . . Hover . | . . . . . . . . . . . . . . . . . . . . . . . . . . . . . . . . . . . . . . . . . . . . . . . . . . Flight 43649 | . 416 189 585 476 646 430 752 633 249 2168 230 1272 653 899 502 457 77 487 1214 1057 420 135 111 2344 234 2713 313 282 620 272 1260 711 1657 321 1320 676 1005 17 2046 531 1615 1119 413 3572 1548 1416 160 1661 1765 Fastest Speed 6 | 50 37 37 28 28 28 28 26 26 29 29 29 24 17 22 22 22 22 22 19 7 20 20 7 17 24 6 14 14 8 15 13 7 13 7 12 6 12 12 9 6 8 8 17 15 19 19 19 15 15 Average Speed 21 | 50 43 38 32 28 29 30 27 31 29 29 29 28 28 22 22 22 22 22 20 19 20 219 19 24 24 22 21 21 21 17 13 12 13 12 12 11 12 12 10 13 18 16 19 18 19 19 19 15 15 Slowest Speed 500 | 50 50 50 250 28 110 114 109 200 32 29 29 96 100 34 22 22 22 22 22 20 70 500 32 99 98 27 22 22 22 20 22 13 69 13 13 12 68 12 14 26 86 17 21 94 19 19 19 19 80 Overloaded Moves 365 | . . . . . . . . . . . . 83 3 . . . . . . 16 . . 16 . . 4 . . 7 . . 33 . 24 . 66 . . 21 69 5 18 . . . . . . . Propulsion Burnouts 1 | . . . . . . . . . . . . . . . . . . . . . . . . . . . . . . . . . . . . . . . . 1 . . . . . . . . . Robots Hopped 341 | . 7 2 5 6 5 2 17 3 . 16 3 10 3 3 . . . . 11 6 . 1 8 27 2 14 . . 2 . 4 2 7 12 10 6 . . 33 13 16 10 15 22 6 4 2 3 23 Potential Cave-ins 12 | . . . . . . . . . . . . . . . . . . . . . . . . . . . . . . . . . . . . . . . . . . . . . 4 5 . . 3 Cave-ins Triggered . | . . . . . . . . . . . . . . . . . . . . . . . . . . . . . . . . . . . . . . . . . . . . . . . . . . Teleports 1 | . . . . . . . . . . . . . . . . . . . . . . . . . . . . . . . . . . . . . . . . . . . . . . 1 . . . Exploration Rate (%) 61 | 3 95 43 77 98 67 47 83 64 23 70 90 51 63 28 82 68 68 72 40 93 76 87 10 67 79 60 55 56 92 44 38 74 51 60 36 78 70 6 62 72 43 83 52 86 93 74 37 36 50 Regions Visited 49 Branch Regions 20 Pre-discovered Areas 25 | . 3 . 3 . 1 . 2 . . 4 . . . 1 1 . 1 1 2 . . . . . . 1 . . . 1 . . . . . . . . 2 . . 1 . . 1 . . . . Known Exits Taken 35 | . 1 1 1 1 1 . 1 . 1 . . 1 . 1 1 1 1 1 1 1 1 1 1 . . 1 1 1 1 1 1 . 1 . 1 . 1 1 1 . 1 1 . 1 1 1 . 1 . Unknown Exits Taken 1 | 1 . . . . . . . . . . . . . . . . . . . . . . . . . . . . . . . . . . . . . . . . . . . . . . . . . Scrap Searched 12 | . . 1 . 2 . . . . . . . . . . 1 2 . 1 . . . . . . . . 4 1 . . . . . . . . . . . . . . . . . . . . . Spaces Dug 684 | . 2 . 10 . 18 18 10 2 4 40 . 23 10 17 5 . . 2 19 2 . . 1 29 . 45 . . . 1 13 16 31 10 17 11 8 . 41 16 28 25 9 32 31 36 26 40 36 Terrain Destroyed 1821 | . 2 . 10 . 18 69 21 129 13 40 4 23 115 17 5 . . 2 19 2 . 12 1 41 . 45 . 24 . 7 13 172 31 23 17 119 32 . 41 72 33 30 9 36 36 48 226 75 189 Melee 557 | . . . 10 . 18 18 10 2 4 40 . 23 10 17 5 . . 2 19 2 . . . 29 . 45 . . . 1 13 16 31 10 17 11 8 . 41 16 23 11 5 22 13 5 1 25 34 Projectile 358 | . 2 . . . . . . 1 . . . . . . . . . . . . . 12 1 2 . . . . . . . . . . . . . . . . 10 19 4 14 23 43 97 27 103 AOE 906 | . . . . . . 51 11 126 9 . 4 . 105 . . . . . . . . . . 10 . . . 24 . 6 . 156 . 13 . 108 24 . . 56 . . . . . . 128 23 52 Terrain Rammed . | . . . . . . . . . . . . . . . . . . . . . . . . . . . . . . . . . . . . . . . . . . . . . . . . . . Walls Destroyed . | . . . . . . . . . . . . . . . . . . . . . . . . . . . . . . . . . . . . . . . . . . . . . . . . . . Machines Disabled . | . . . . . . . . . . . . . . . . . . . . . . . . . . . . . . . . . . . . . . . . . . . . . . . . . . Actions | -11 -10 -10 -9 -9 -8 -8 -8 -8 -8 -7 -7 -7 -7 -7 -7 -7 -7 -6 -6 -6 -6 -6 -6 -5 -5 -5 -5 -5 -5 -4 -4 -4 -4 -4 -4 -4 -4 -4 -3 -3 -3 -3 -3 -2 -2 -2 -2 -1 -1 --------- Run | Yrd Mat Min Mat Min Mat Gar Mat Gar Mat Fac Was Fac Gar Fac Low Low Dat Pro Fac Ext Cet Arc Hub Fac Was Fac Upp Upp War Pro Fac Gar Fac Gar Fac Gar Arm Lab Res Gar Res Tes Gar Res Qua Sec Gar Acc Com Total 53828 | 39 1208 237 815 479 905 572 1175 838 296 2512 336 1492 1019 1063 644 459 76 497 1533 1910 661 335 113 2630 312 3018 327 295 658 312 1342 793 1983 357 1448 874 1457 18 2540 588 1977 1410 516 3870 1843 1661 228 1983 2174 Wait 7148 | . 367 17 151 8 210 31 379 68 15 285 100 179 210 107 134 2 . 9 253 745 203 54 3 159 68 220 2 7 16 34 41 39 261 17 85 170 416 2 411 22 275 231 84 168 235 136 17 223 279 Move 43519 | 30 758 214 581 466 637 426 717 628 248 2139 224 1254 662 892 501 456 76 486 1192 1045 419 219 96 2296 230 2687 312 281 616 271 1252 707 1642 299 1301 666 1004 16 1984 505 1585 1100 385 3537 1536 1408 155 1654 1724 Hop 270 | . 7 1 5 3 4 1 17 3 . 13 2 7 2 3 . . . . 10 5 . 1 6 21 1 11 . . 1 . 4 1 7 9 8 3 . . 28 10 13 8 11 12 5 4 2 3 18 Pick Up 177 | 1 5 . 5 1 1 . 10 3 6 8 2 2 . 5 . 1 . . 7 . 1 . . 8 1 7 7 1 7 1 5 . 4 . 6 . 1 . 15 . 12 8 3 11 9 2 2 7 2 Fast Attach 228 | 4 10 1 9 . 2 1 5 9 2 4 . 3 . 7 2 . . . 5 . 10 1 . 24 . 7 . . 3 . 4 . 9 . 3 1 1 . 8 . 7 8 . 35 1 14 5 8 15 Attach 144 | . 1 2 6 . 5 3 4 6 3 4 1 1 6 1 . . . . 2 . 3 . . 11 . 5 1 . 2 . 5 . . 1 2 . 1 . 7 6 10 1 6 4 . 3 4 12 15 Detach 80 | . . . 4 . 2 . 3 4 2 . 1 . 5 . . . . . . . 3 . . 7 . 2 . . . . 1 . . . . . . . 2 2 5 1 4 4 . 1 6 8 13 Swap 294 | . 9 . 5 1 7 2 13 11 4 6 3 13 3 10 . . . . 5 . . 4 2 16 5 11 3 2 6 2 4 12 10 10 12 9 8 . 14 7 13 7 3 8 6 13 3 6 6 Drop 296 | . 10 2 6 . 1 1 8 5 6 6 2 9 5 10 2 . . . 8 . 8 1 1 15 2 9 2 1 7 1 11 . 9 . 11 1 1 . 16 . 11 11 4 42 9 8 7 9 18 Fire 478 | 4 41 . 15 . 12 19 3 50 6 . 1 . 17 . . . . . . . 3 53 1 34 5 . . 3 . 2 . 2 . 2 . 6 2 . . 5 10 20 4 16 24 46 22 22 28 Melee 854 | . . . 28 . 24 35 16 17 4 47 . 24 34 28 5 . . 2 21 13 3 2 . 39 . 59 . . . 1 15 32 37 19 20 18 13 . 55 26 36 15 12 33 18 11 5 31 56 Ram . | . . . . . . . . . . . . . . . . . . . . . . . . . . . . . . . . . . . . . . . . . . . . . . . . . . Kick . | . . . . . . . . . . . . . . . . . . . . . . . . . . . . . . . . . . . . . . . . . . . . . . . . . . Crush . | . . . . . . . . . . . . . . . . . . . . . . . . . . . . . . . . . . . . . . . . . . . . . . . . . . Escape Stasis 176 | . . . . . . 43 . 28 . . . . 23 . . . . . 30 32 . . . . . . . . . . . . . . . . . . . 5 . . . . . 15 . . . Rewire 148 | . . . . . . 10 . 6 . . . . 52 . . . . . . 70 . . . . . . . . . . . . . . . . 10 . . . . . . . . . . . . Trap . | . . . . . . . . . . . . . . . . . . . . . . . . . . . . . . . . . . . . . . . . . . . . . . . . . . Miscellaneous 16 | . . . . . . . . . . . . . . . . . . . . . 8 . 4 . . . . . . . . . 4 . . . . . . . . . . . . . . . . Route ------- -11/Scrapyard -10/Materials (discovered 5 exits: *Mat x3 / *Min / *Sub) -10/Mines (discovered 2 exits: *Mat x2) -9/Materials (discovered 6 exits: *Mat x3 / *Min x2 / Sto) -9/Mines (discovered 2 exits: *Mat x2) -8/Materials (discovered 4 exits: *Fac x3 / Gar) -8/Garrison (discovered 2 exits: *Mat x2) -8/Materials (discovered 4 exits: *Fac x3 / Gar) -8/Garrison -8/Materials -7/Factory (discovered 2 exits: *Fac / *Low) -7/Waste -7/Factory (discovered 3 exits: *Fac / *Low / Gar) -7/Garrison (discovered 2 exits: *Fac x2) -7/Factory (discovered 2 exits: *Low x2) -7/Lower Caves -7/Lower Caves (discovered 2 exits: *Fac / *Dat) -7/Data Miner -6/Proximity Caves -6/Factory (discovered 7 exits: *Fac x3 / *Low x2 / *Ext x2) -6/Extension (discovered 3 exits: *Fac x2 / *Cet) -6/Cetus (discovered 2 exits: *Fac / *Arc) -6/Archives (discovered 3 exits: *Fac / *Hub x2) -6/Hub_04(d) -5/Factory (discovered 4 exits: *Fac x2 / *Upp x2) -5/Waste -5/Factory (discovered 6 exits: *Fac x4 / *Upp x2) -5/Upper Caves -5/Upper Caves (discovered 2 exits: Fac / *War) -5/Warlord -4/Proximity Caves -4/Factory (discovered 3 exits: *Res / Arm / Gar) -4/Garrison (discovered 3 exits: *Fac x3) -4/Factory (discovered 7 exits: *Res x3 / *Upp x2 / Arm / Gar) -4/Garrison (discovered 4 exits: *Fac x4) -4/Factory (discovered 4 exits: Res x2 / *Upp / Gar) -4/Garrison (discovered 3 exits: *Arm x3) -4/Armory (discovered 3 exits: Res x2 / *Lab) -4/Lab -3/Research (discovered 4 exits: *Res x2 / *Tes / Gar) -3/Garrison (discovered 3 exits: *Res x3) -3/Research (discovered 5 exits: Res x3 / *Tes x2) -3/Testing (discovered 2 exits: *Res / Gar) -3/Garrison (discovered 3 exits: *Res x3) -2/Research (discovered 5 exits: *Acc x3 / *Qua x2) -2/Quarantine (discovered 3 exits: *Acc / *Sec / *Frg) -2/Section 7 (discovered 2 exits: *Acc / Gar) -2/Garrison (discovered 3 exits: *Acc x3) -1/Access -1/Command Free Derelict Territories History --------- Turn | Location | Event 6 | -11/Scrapyard | Discovered new exit (range 15) 35 | -11/Scrapyard | Entered Materials 156 | -10/Materials | Discovered new exit (range 10) 302 | -10/Materials | Build established: Mutant 406 | -10/Materials | Discovered new exit (range 3) 502 | -10/Materials | Discovered new exit (range 9) 505 | -10/Materials | Discovered new exit (range 6) 553 | -10/Materials | Repaired Hvy. Assault Rifle 560 | -10/Materials | Discovered new exit (range 11) 643 | -10/Materials | Learned location of Recycling (-9) 692 | -10/Materials | Learned 2 Storage zone layouts 787 | -10/Materials | Identified exit to Mines 787 | -10/Materials | Identified exit to Subcaves 787 | -10/Materials | Identified exit to Materials 891 | -10/Materials | Entered Mines 892 | -10/Mines | Assembled infested the area 920 | -10/Mines | Met 8R-AWN 971 | -10/Mines | Discovered exit to Materials (range 9) 982 | -10/Mines | Met a Derelict testing a Signal Generator 992 | -10/Mines | Discovered exit to Materials (range 5) 998 | -10/Mines | Entered Materials 998 | -9/Materials | Accompanied by 1 ally 998 | -9/Materials | Evolved 2 slots: Propulsion x2 999 | -9/Materials | Identified exit to Mines 1126 | -9/Materials | Central database locked down 1135 | -9/Materials | Discovered new exit (range 16) 1195 | -9/Materials | Learned location of 1 exit from Storage 1311 | -9/Materials | Identified exit to Materials 1311 | -9/Materials | Identified exit to Storage 1328 | -9/Materials | Learned location of 2 exits from Materials 1354 | -9/Materials | Learned location of Zion (-6) 1488 | -9/Materials | Entered Mines 1517 | -9/Mines | Received a Rocket Launcher from a helpful Derelict 1566 | -9/Mines | Build established: Scavenger-Sprinter 1566 | -9/Mines | Found a hidden stash of uninstalled traps 1587 | -9/Mines | Found a damaged Exp. Sensor Array with a note attached 1588 | -9/Mines | Found Prototype Device 1589 | -9/Mines | Learned 4 Materials zone layouts 1610 | -9/Mines | Found a Scrap Suit stashed away for nefarious purposes 1632 | -9/Mines | Entered Materials 1632 | -8/Materials | Evolved 2 slots: Utility x2 1633 | -8/Materials | Identified exit to Factory 1791 | -8/Materials | Identified Exp. Sensor Array 1800 | -8/Materials | Learned location of 2 exits from Lower Caves 1863 | -8/Materials | Learned 4 Lower Caves zone layouts 1914 | -8/Materials | Learned 4 Factory zone layouts 1953 | -8/Materials | Learned location of Lower Caves (-7) 1958 | -8/Materials | Repaired Broken Exp. Sensor Array 1983 | -8/Materials | Learned 2 Lower Caves zone layouts 2001 | -8/Materials | Learned location of 1 exit from Storage 2011 | -8/Materials | Learned location of 1 exit from Lower Caves 2030 | -8/Materials | Learned Factory trap positions 2100 | -8/Materials | Learned Storage trap positions 2142 | -8/Materials | Identified exit to Garrison 2142 | -8/Materials | Entered Garrison 2236 | -8/Garrison | Garrison Relay disabled 2298 | -8/Garrison | Triggered checkpoint 2326 | -8/Garrison | Triggered checkpoint 2328 | -8/Garrison | Discovered new exit (range 8) 2415 | -8/Garrison | Garrison Relay disabled 2492 | -8/Garrison | Discovered new exit (range 8) 2501 | -8/Garrison | Entered Materials 2585 | -8/Materials | Discovered exit to Factory (range 7) 2688 | -8/Materials | Central database locked down 2718 | -8/Materials | Discovered exit to Factory (range 3) 2789 | -8/Materials | Repaired Cesium-ion Thruster+ 2828 | -8/Materials | Repaired Cesium-ion Thruster+ 2837 | -8/Materials | Learned location of 1 exit from Storage 2868 | -8/Materials | Repaired Imp. Utility Shielding 2908 | -8/Materials | Repaired Lgt. Deuterium Engine 2924 | -8/Materials | Identified exit to Garrison 3013 | -8/Materials | Learned 2 Lower Caves zone layouts 3022 | -8/Materials | Build established: Hacker-Sprinter 3048 | -8/Materials | Learned location of 2 exits from Lower Caves 3180 | -8/Materials | Entered Garrison 3180 | -8/Garrison | Accompanied by 2 allies 3244 | -8/Garrison | Core integrity fell below 50% 3300 | -8/Garrison | Garrison Relay disabled 3304 | -8/Garrison | Garrison Relay disabled 3427 | -8/Garrison | Lost 4 parts (1p3n) 3457 | -8/Garrison | Lost 4 allies 3530 | -8/Garrison | Triggered checkpoint 3677 | -8/Garrison | Phase Generator disabled 3688 | -8/Garrison | Discovered new exit (range 10) 3691 | -8/Garrison | Entered Materials 3751 | -8/Materials | Core integrity fell below 20% 3817 | -8/Materials | Discovered exit to Factory (range 3) 3822 | -8/Materials | Entered Factory 3822 | -7/Factory | Evolved 2 slots: Utility x2 3824 | -7/Factory | Loaded intel: 103 trap records 3917 | -7/Factory | Build established: Scavenger-Sprinter 4118 | -7/Factory | Discovered new exit (range 7) 4120 | -7/Factory | Identified exit to Factory 4210 | -7/Factory | Loaded intel: 4 garrison access locations 4348 | -7/Factory | Learned location of 2 exits from Archives 4387 | -7/Factory | Repaired Surge Thruster+ 4402 | -7/Factory | Identified exit to Lower Caves 4408 | -7/Factory | Repaired Minigun+ 4446 | -7/Factory | Learned location of Cetus (-6) 4480 | -7/Factory | Loaded intel: 52 interactive machine locations 4492 | -7/Factory | Build established: Scavenger-Scout 4503 | -7/Factory | Learned Hub_04(d) interactive machine intel 4524 | -7/Factory | Repaired Lgt. Ion Engine+ 4580 | -7/Factory | Learned location of 1 exit from Upper Caves 4622 | -7/Factory | Search patrols dispatched 4634 | -7/Factory | Learned 4 Factory zone layouts 4697 | -7/Factory | Learned Extension security intel 4887 | -7/Factory | Central database locked down 4899 | -7/Factory | Sucked down chute 4899 | -7/Factory | Entered Waste 4900 | -7/Waste | Met a frightened Derelict 4904 | -7/Waste | Spotted C-40 Crusher 4905 | -7/Waste | Spotted C-40 Crusher 4906 | -7/Waste | Spotted C-40 Crusher 4908 | -7/Waste | Spotted C-40 Crusher 4911 | -7/Waste | Spotted C-40 Crusher 4915 | -7/Waste | Spotted C-40 Crusher 4917 | -7/Waste | Discovered new exit (range 13) 4924 | -7/Waste | 1 allies followed down the chute 4939 | -7/Waste | Warlord forces began an assault 4958 | -7/Waste | Allies destroyed C-40 Crusher 4965 | -7/Waste | Allies destroyed C-40 Crusher 4978 | -7/Waste | Allies destroyed C-40 Crusher 4983 | -7/Waste | Allies destroyed C-40 Crusher 4988 | -7/Waste | Allies destroyed C-40 Crusher 4998 | -7/Waste | Lost 9 allies 5010 | -7/Waste | Identified exit to Factory 5077 | -7/Waste | Entered Factory 5077 | -7/Factory | Accompanied by 12 allies 5154 | -7/Factory | Garrison activated, responded to threat 5227 | -7/Factory | Unchained authorized (QV-33N) 5392 | -7/Factory | Fabricated Imp. Surge Thruster? 5436 | -7/Factory | Discovered exit to Lower Caves (range 6) 5441 | -7/Factory | Discovered exit to Factory (range 6) 5660 | -7/Factory | Central database locked down 5721 | -7/Factory | Identified exit to Garrison 5724 | -7/Factory | Entered Garrison 5732 | -7/Garrison | Triggered checkpoint 5774 | -7/Garrison | Triggered checkpoint 6002 | -7/Garrison | Discovered new exit (range 12) 6018 | -7/Garrison | Triggered checkpoint 6020 | -7/Garrison | Identified exit to Factory 6049 | -7/Garrison | Destroyed 8 combat bots 6053 | -7/Garrison | Garrison Relay disabled 6077 | -7/Garrison | Attempted to access garrison exit controls, blocked by remote lockdown 6285 | -7/Garrison | Garrison Relay disabled 6286 | -7/Garrison | Triggered checkpoint 6292 | -7/Garrison | Triggered checkpoint 6325 | -7/Garrison | Discovered exit to Factory (range 15) 6334 | -7/Garrison | Lost 4 allies 6351 | -7/Garrison | Entered Factory 6448 | -7/Factory | Fabricated Imp. Surge Thruster (x2) 6482 | -7/Factory | Fabricated Adv. ECM Suite (x2) 6507 | -7/Factory | Repaired Imp. Surge Thruster+ 6560 | -7/Factory | Unchained authorized (QV-33N) 6662 | -7/Factory | Learned location of 2 exits from Archives 6684 | -7/Factory | Repaired Broken Imp. Surge Thruster+ 6727 | -7/Factory | Learned Extension interactive machine intel 6739 | -7/Factory | Learned location of 1 exit from Upper Caves 6760 | -7/Factory | Loaded intel: 6 repair station locations 6779 | -7/Factory | Entered Lower Caves 6780 | -7/Lower Caves | Identified exit to Lower Caves 6792 | -7/Lower Caves | Met a Warlord Commander 6793 | -7/Lower Caves | Learned location of Warlord (-5) 6794 | -7/Lower Caves | Warlord Commander delivered Encrypted Comm Array 6795 | -7/Lower Caves | Found Encrypted Comm Array 6800 | -7/Lower Caves | Learned Factory terminal intel 6802 | -7/Lower Caves | Entered a destroyed Warlord outpost 6830 | -7/Lower Caves | Encountered a Warlord checkpoint 6951 | -7/Lower Caves | Build established: Hacker-Scout 7043 | -7/Lower Caves | Entered another Lower Caves area 7044 | -7/Lower Caves | Identified exit to Data Miner 7052 | -7/Lower Caves | Learned Factory emergency access door positions 7056 | -7/Lower Caves | Encountered a Warlord checkpoint 7104 | -7/Lower Caves | Found DRS Beacon 7126 | -7/Lower Caves | Learned location of 2 exits from Factory 7147 | -7/Lower Caves | Entered Data Miner 7147 | -7/Data Miner | Discovered new exit (range 6) 7152 | -7/Data Miner | Met Data Miner 7156 | -7/Data Miner | Learned location of Section 7 (-2) 7156 | -7/Data Miner | Acquired the access code to Warlord's prototype stash 7159 | -7/Data Miner | Received God Mode back door access code from Data Miner 7164 | -7/Data Miner | Identified exit to Proximity Caves 7164 | -7/Data Miner | Entered Proximity Caves 7198 | -6/Proximity Caves | Learned Factory interactive machine intel 7214 | -6/Proximity Caves | Learned Factory terminal intel 7282 | -6/Proximity Caves | Discovered exit to Factory (range 3) 7286 | -6/Proximity Caves | Entered Factory 7286 | -6/Factory | Evolved 2 slots: Propulsion x1, Utility x1 7287 | -6/Factory | Identified exit to Extension 7288 | -6/Factory | Identified exit to Factory 7290 | -6/Factory | Loaded intel: 52 interactive machine locations 7291 | -6/Factory | Loaded intel: 28 terminal locations 7489 | -6/Factory | Unchained authorized (QV-33N) 7538 | -6/Factory | Discovered exit to Factory (range 15) 7582 | -6/Factory | Learned location of Upper Caves (-5) 7630 | -6/Factory | Central database locked down 7664 | -6/Factory | Learned 2 Extension zone layouts 7671 | -6/Factory | Discovered new exit (range 16) 7734 | -6/Factory | Learned location of 1 exit from Upper Caves 7796 | -6/Factory | Learned location of 2 exits from Archives 7846 | -6/Factory | Identified exit to Lower Caves 7888 | -6/Factory | Learned location of Upper Caves (-4) 7910 | -6/Factory | Entered Extension 7913 | -6/Extension | Loaded intel: 15 interactive machine locations 7930 | -6/Extension | Rescued a captive Derelict 7931 | -6/Extension | Rescued a captive Derelict 7932 | -6/Extension | Rescued A7 7932 | -6/Extension | Rescued a captive Derelict 7943 | -6/Extension | Rescued a captive Derelict 7943 | -6/Extension | Rescued a captive Derelict 7979 | -6/Extension | Rescued a captive Derelict 8320 | -6/Extension | Spotted B-75 Beast 8325 | -6/Extension | Build established: Commander-Scout 8331 | -6/Extension | Spotted B-75 Beast 8339 | -6/Extension | Allies destroyed B-75 Beast 8360 | -6/Extension | Allies destroyed B-75 Beast 8386 | -6/Extension | Lost 6 allies 8388 | -6/Extension | Rescued a captive Derelict 8388 | -6/Extension | Rescued a captive Derelict 8921 | -6/Extension | Discovered new exit (range 16) 8921 | -6/Extension | Discovered exit to Factory (range 15) 8924 | -6/Extension | Identified exit to Cetus 9006 | -6/Extension | Entered Cetus 9006 | -6/Cetus | Accompanied by 13 allies (A7) 9011 | -6/Cetus | Acquired a Cetus Manufacturing Module code from A7 9011 | -6/Cetus | Spotted Cetus Guard 9013 | -6/Cetus | Spotted Cetus Guard 9018 | -6/Cetus | Allies destroyed Cetus Guard 9019 | -6/Cetus | Spotted Cetus Guard 9034 | -6/Cetus | Allies destroyed Cetus Guard 9042 | -6/Cetus | Allies destroyed Cetus Guard 9071 | -6/Cetus | Lost 5 allies 9104 | -6/Cetus | Escorted A7 to Cetus Mainframe 9105 | -6/Cetus | Started Cetus Manufacturing Module 9130 | -6/Cetus | Manufactured an Enhanced Grunt 9155 | -6/Cetus | Manufactured an Enhanced Grunt 9180 | -6/Cetus | Manufactured an Enhanced Grunt 9205 | -6/Cetus | Manufactured an Enhanced Grunt 9230 | -6/Cetus | Manufactured an Enhanced Grunt 9242 | -6/Cetus | Discovered new exit (range 15) 9264 | -6/Cetus | Spotted Cetus Guard 9264 | -6/Cetus | Spotted Cetus Guard 9279 | -6/Cetus | Spotted Cetus Guard 9279 | -6/Cetus | Spotted Cetus Guard 9284 | -6/Cetus | Found Prototype Device 9284 | -6/Cetus | Identified Exp. Thermal Shield 9301 | -6/Cetus | Allies destroyed Cetus Guard 9307 | -6/Cetus | Discovered exit to Factory (range 15) 9309 | -6/Cetus | Met Revision 17 9313 | -6/Cetus | Lost 4 allies 9324 | -6/Cetus | Identified exit to Archives 9357 | -6/Cetus | Entered Archives 9357 | -6/Archives | Accompanied by 9 allies (A7) 9358 | -6/Archives | Identified exit to Hub_04(d) 9362 | -6/Archives | Received a hacking code to weaken MAIN.C 9737 | -6/Archives | Build established: Hacker-Mutant 10013 | -6/Archives | Entered Hub_04(d) 10013 | -6/Hub_04(d) | Accompanied by 6 allies 10014 | -6/Hub_04(d) | Loaded intel: 17 interactive machine locations 10032 | -6/Hub_04(d) | Network Hub disabled 10038 | -6/Hub_04(d) | Spotted Lightning 10038 | -6/Hub_04(d) | Spotted Lightning 10042 | -6/Hub_04(d) | Discovered exit to Factory (range 8) 10042 | -6/Hub_04(d) | Spotted Lightning 10042 | -6/Hub_04(d) | Spotted Lightning 10046 | -6/Hub_04(d) | Spotted Lightning 10047 | -6/Hub_04(d) | Spotted Lightning 10051 | -6/Hub_04(d) | Spotted Lightning 10051 | -6/Hub_04(d) | Spotted Lightning 10052 | -6/Hub_04(d) | Spotted Lightning 10055 | -6/Hub_04(d) | Entered Factory 10055 | -5/Factory | Evolved 2 slots: Propulsion x2 10056 | -5/Factory | Identified exit to Upper Caves 10057 | -5/Factory | Loaded intel: 26 terminal locations 10083 | -5/Factory | Lost 6 parts (1p3n1u1w) 10084 | -5/Factory | Lost 3 allies 10338 | -5/Factory | Repaired Imp. Cesium-ion Thruster 10599 | -5/Factory | Discovered new exit (range 8) 10601 | -5/Factory | Identified exit to Factory 10655 | -5/Factory | First assault squad dispatched 10667 | -5/Factory | Discovered exit to Upper Caves (range 4) 10674 | -5/Factory | Incoming assault squad redirected 10726 | -5/Factory | Fabricated Lgt. Regenerative Plating (x1) 10755 | -5/Factory | Incoming investigation squad redirected 10852 | -5/Factory | Learned location of 1 exit from Research 10924 | -5/Factory | Learned location of 1 exit from Quarantine 10947 | -5/Factory | Discovered exit to Factory (range 16) 10955 | -5/Factory | Search patrols dispatched 10963 | -5/Factory | Fabricated Exp. Sensor Array? 11016 | -5/Factory | Incoming investigation squad redirected 11036 | -5/Factory | Manually triggered Chute Trap 11036 | -5/Factory | Sucked down chute 11036 | -5/Factory | Entered Waste 11042 | -5/Waste | Spotted C-40 Crusher 11044 | -5/Waste | Spotted C-40 Crusher 11045 | -5/Waste | Spotted C-40 Crusher 11049 | -5/Waste | Spotted C-40 Crusher 11051 | -5/Waste | Discovered new exit (range 14) 11055 | -5/Waste | Identified exit to Factory 11069 | -5/Waste | Spotted C-40 Crusher 11076 | -5/Waste | Warlord forces began an assault 11081 | -5/Waste | Allies destroyed C-40 Crusher 11082 | -5/Waste | Allies destroyed C-40 Crusher 11089 | -5/Waste | Allies destroyed C-40 Crusher 11099 | -5/Waste | Allies destroyed C-40 Crusher 11118 | -5/Waste | Spotted C-40 Crusher 11121 | -5/Waste | Allies destroyed C-40 Crusher 11181 | -5/Waste | Entered Factory 11181 | -5/Factory | Accompanied by 17 allies 11292 | -5/Factory | Build established: Hacker-Scout 11351 | -5/Factory | Garrison activated, responded to threat 11384 | -5/Factory | Discovered exit to Factory (range 3) 11411 | -5/Factory | Repaired Imp. Utility Shielding 11506 | -5/Factory | Lost 3 allies 11551 | -5/Factory | Unchained authorized (DW-4LL) 11553 | -5/Factory | Lost 3 allies 11630 | -5/Factory | Learned Research trap positions 11706 | -5/Factory | Learned location of 2 exits from Research 11708 | -5/Factory | Fabricated Adv. Surge Thruster (x2) 11813 | -5/Factory | Incoming investigation squad redirected 11840 | -5/Factory | DW-4LL burst out of a wall 11903 | -5/Factory | DW-4LL burst out of a wall 12031 | -5/Factory | DW-4LL burst out of a wall 12044 | -5/Factory | Central database locked down 12049 | -5/Factory | Discovered exit to Factory (range 7) 12054 | -5/Factory | Spotted B-75 Beast 12081 | -5/Factory | Search patrols dispatched 12102 | -5/Factory | Lost 3 parts (3n) 12122 | -5/Factory | Incoming investigation squad redirected 12141 | -5/Factory | DW-4LL burst out of a wall 12146 | -5/Factory | Fabricated Adv. Surge Thruster (x2) 12236 | -5/Factory | Entered Upper Caves 12237 | -5/Upper Caves | Identified exit to Upper Caves 12246 | -5/Upper Caves | Learned Factory trap positions 12268 | -5/Upper Caves | Encountered a Warlord checkpoint 12319 | -5/Upper Caves | Entered another Upper Caves area 12320 | -5/Upper Caves | Identified exit to Warlord 12321 | -5/Upper Caves | Encountered a Warlord checkpoint 12322 | -5/Upper Caves | Learned location of 1 exit from Factory 12343 | -5/Upper Caves | Entered an active Warlord outpost 12343 | -5/Upper Caves | Learned Research trap positions 12343 | -5/Upper Caves | Learned Extension trap positions 12398 | -5/Upper Caves | Entered Warlord 12418 | -5/Warlord | Received a Watcher feed algorithm from an ecstatic Tinkerer 12427 | -5/Warlord | Met Warlord 12452 | -5/Warlord | Warlord's base attacked by MAIN.C 12453 | -5/Warlord | Build established: Machinist-Scout 12476 | -5/Warlord | Found Prototype Piercing Weapon 12476 | -5/Warlord | Identified Vortex Lance 12486 | -5/Warlord | Found Vortex Lance 12521 | -5/Warlord | Opened Warlord's prototype stash 12532 | -5/Warlord | Found Prototype Hackware 12537 | -5/Warlord | Found Prototype Device 12537 | -5/Warlord | Identified Exp. Phase Shifter 12539 | -5/Warlord | Found Prototype Reactor 12565 | -5/Warlord | Opened side exit 12571 | -5/Warlord | Discovered new exit (range 8) 12572 | -5/Warlord | Identified exit to Proximity Caves 12572 | -5/Warlord | Entered Proximity Caves 12582 | -4/Proximity Caves | Learned location of Quarantine (-2) 12663 | -4/Proximity Caves | Entered Factory 12663 | -4/Factory | Evolved 2 slots: Power x1, Propulsion x1 12664 | -4/Factory | Identified exit to Armory 12665 | -4/Factory | Identified exit to Research 12665 | -4/Factory | Identified Vortex Chain Reactor 12666 | -4/Factory | Loaded intel: 95 trap records 12678 | -4/Factory | Identified Ghost Barrier 12796 | -4/Factory | Fabricated Exp. Propulsion Shielding (x1) 12811 | -4/Factory | Build established: Hacker-Scout 12864 | -4/Factory | Unchained authorized (DW-4LL) 12921 | -4/Factory | Central database locked down 12938 | -4/Factory | Identified exit to Garrison 12938 | -4/Factory | Entered Garrison 12939 | -4/Garrison | Identified exit to Factory 12964 | -4/Garrison | Garrison Relay disabled 12998 | -4/Garrison | Triggered checkpoint 13016 | -4/Garrison | Spotted B-86 Titan 13018 | -4/Garrison | Triggered checkpoint 13018 | -4/Garrison | Spotted B-86 Titan 13018 | -4/Garrison | Spotted B-86 Titan 13031 | -4/Garrison | Garrison Relay disabled 13038 | -4/Garrison | Triggered checkpoint 13046 | -4/Garrison | Garrison Relay disabled 13072 | -4/Garrison | Garrison Relay disabled 13101 | -4/Garrison | Discovered exit to Factory (range 23) 13101 | -4/Garrison | Discovered exit to Factory (range 35) 13101 | -4/Garrison | Discovered exit to Factory (range 60) 13114 | -4/Garrison | Triggered checkpoint 13115 | -4/Garrison | Garrison Relay disabled 13132 | -4/Garrison | Phase Generator disabled 13136 | -4/Garrison | Triggered checkpoint 13170 | -4/Garrison | Entered Factory 13401 | -4/Factory | Repaired Broken Adv. Cooling System 13433 | -4/Factory | Repaired Adv. Surge Thruster+ 13445 | -4/Factory | Discovered exit to Research (range 11) 13486 | -4/Factory | Spotted B-86 Titan 13508 | -4/Factory | Learned location of 1 exit from Testing 13540 | -4/Factory | Repaired Imp. Grenade Launcher+ 13553 | -4/Factory | Discovered new exit (range 2) 13553 | -4/Factory | Identified exit to Upper Caves 13581 | -4/Factory | Central database locked down 13641 | -4/Factory | Fabricated Exp. Signal Interpreter (x1) 13658 | -4/Factory | Repaired Exp. Propulsion Shielding 13667 | -4/Factory | Learned location of 1 exit from Upper Caves 13681 | -4/Factory | Learned Research stockpile data 13681 | -4/Factory | Identified exit to Garrison 13704 | -4/Factory | Learned 2 Upper Caves zone layouts 13735 | -4/Factory | Learned Quarantine non-interactive machine intel 13751 | -4/Factory | Repaired Broken Imp. Cesium-ion Thruster 13777 | -4/Factory | Learned location of 2 exits from Proximity Caves 13782 | -4/Factory | Entered Garrison 13798 | -4/Garrison | Garrison Relay disabled 13803 | -4/Garrison | Garrison Relay disabled 13824 | -4/Garrison | Spotted B-86 Titan 13825 | -4/Garrison | Triggered checkpoint 13825 | -4/Garrison | Triggered checkpoint 13827 | -4/Garrison | Discovered new exit (range 8) 13836 | -4/Garrison | Garrison Relay disabled 13849 | -4/Garrison | Identified exit to Factory 13882 | -4/Garrison | Triggered checkpoint 13882 | -4/Garrison | Discovered exit to Factory (range 42) 13882 | -4/Garrison | Discovered exit to Factory (range 29) 13882 | -4/Garrison | Discovered exit to Factory (range 53) 13882 | -4/Garrison | Discovered exit to Factory (range 27) 13897 | -4/Garrison | Garrison Relay disabled 13907 | -4/Garrison | Entered Factory 13955 | -4/Factory | Repaired Adv. Cooling System 13979 | -4/Factory | Discovered exit to Upper Caves (range 15) 13984 | -4/Factory | Central database locked down 14014 | -4/Factory | Spotted B-86 Titan 14042 | -4/Factory | Discovered exit to Research (range 18) 14086 | -4/Factory | Incoming investigation squad redirected 14099 | -4/Factory | Learned location of 1 exit from Testing 14125 | -4/Factory | Fabricated Exp. Propulsion Shielding (x1) 14172 | -4/Factory | Discovered exit to Research (range 9) 14178 | -4/Factory | Learned Armory stockpile data 14210 | -4/Factory | Identified exit to Garrison 14244 | -4/Factory | Entered Garrison 14244 | -4/Garrison | Accompanied by 4 allies 14291 | -4/Garrison | Phase Generator disabled 14301 | -4/Garrison | Discovered exit to Armory (range 47) 14301 | -4/Garrison | Discovered exit to Armory (range 85) 14301 | -4/Garrison | Discovered exit to Armory (range 50) 14305 | -4/Garrison | Garrison Relay disabled 14351 | -4/Garrison | Garrison Relay disabled 14366 | -4/Garrison | Triggered checkpoint 14370 | -4/Garrison | Triggered checkpoint 14395 | -4/Garrison | Garrison Relay disabled 14414 | -4/Garrison | Triggered checkpoint 14510 | -4/Garrison | Triggered checkpoint 14513 | -4/Garrison | Build established: Hacker-Sprinter 14558 | -4/Garrison | Garrison Relay disabled 14564 | -4/Garrison | Entered Armory 14808 | -4/Armory | Spotted B-86 Titan 14847 | -4/Armory | Discovered new exit (range 3) 14847 | -4/Armory | Identified exit to Lab 14861 | -4/Armory | Learned 2 Upper Caves zone layouts 14916 | -4/Armory | Learned Factory fabricator intel 14962 | -4/Armory | Learned location of 2 exits from Factory 14997 | -4/Armory | Learned Quarantine security intel 15049 | -4/Armory | Learned Research repair station intel 15119 | -4/Armory | Learned 2 Upper Caves zone layouts 15160 | -4/Armory | Learned location of 2 exits from Upper Caves 15164 | -4/Armory | Entered Lab 15164 | -4/Lab | Accompanied by 1 ally 15164 | -4/Lab | Discovered exit to Research (range 10) 15166 | -4/Lab | Unable to decrypt terminal 15168 | -4/Lab | Entered Research 15168 | -3/Research | Accompanied by 1 ally 15168 | -3/Research | Evolved 2 slots: Propulsion x1, Utility x1 15169 | -3/Research | Identified exit to Testing 15169 | -3/Research | Identified exit to Research 15170 | -3/Research | Loaded intel: 80 trap records 15172 | -3/Research | Loaded intel: 4 repair station locations 15212 | -3/Research | Build established: Hacker-Scout 15289 | -3/Research | Spotted B-86 Titan 15296 | -3/Research | Found Prototype Processor 15306 | -3/Research | Identified Exp. Melee Analysis Suite 15368 | -3/Research | Revision forces began assault on 0b10 15486 | -3/Research | Repaired Exp. Propulsion Shielding? 15487 | -3/Research | Found Prototype Device 15507 | -3/Research | Learned Testing terminal intel 15517 | -3/Research | Identified Exp. EM Disruption Field 15558 | -3/Research | Learned Testing terminal intel 15600 | -3/Research | Learned location of 1 exit from Testing 15634 | -3/Research | Learned Access repair station intel 15735 | -3/Research | Learned Access recycling unit intel 15802 | -3/Research | Learned Quarantine stockpile data 15818 | -3/Research | Fabricated Exp. Sensor Array (x1) 15868 | -3/Research | Research terminal network offline 15884 | -3/Research | Found Prototype Processor 15887 | -3/Research | Identified Exp. Terrain Scan Processor 15907 | -3/Research | Repaired Stasis Canceller? 15920 | -3/Research | Repaired Adv. Surge Thruster+? 15922 | -3/Research | Spotted Striker 15924 | -3/Research | Repaired Adv. Surge Thruster+? 15939 | -3/Research | Spotted Striker 15966 | -3/Research | Repaired Q-thruster? 15981 | -3/Research | Identified exit to Garrison 15990 | -3/Research | Entered Garrison 15993 | -3/Garrison | Lost 3 allies 16015 | -3/Garrison | Garrison Relay disabled 16057 | -3/Garrison | Garrison Relay disabled 16061 | -3/Garrison | Discovered new exit (range 8) 16077 | -3/Garrison | Garrison Relay disabled 16102 | -3/Garrison | Triggered checkpoint 16113 | -3/Garrison | Discovered new exit (range 8) 16114 | -3/Garrison | Identified exit to Research 16114 | -3/Garrison | Attempted to access garrison exit controls, blocked by remote lockdown 16169 | -3/Garrison | Spotted Executioner 16173 | -3/Garrison | Spotted Executioner 16181 | -3/Garrison | Entered Research 16182 | -3/Research | Loaded intel: 113 trap records 16191 | -3/Research | Lost 8 parts (5n2u1w) 16422 | -3/Research | Repaired Adv. ECM Suite 16469 | -3/Research | Fabricated Adv. Surge Thruster (x2) 16592 | -3/Research | Unchained authorized (GL-D0S) 16636 | -3/Research | Fabricated Stasis Canceller (x2) 16661 | -3/Research | Spotted B-86 Titan 16817 | -3/Research | Learned location of 1 exit from Armory 16860 | -3/Research | Learned location of 1 exit from Testing 16916 | -3/Research | Loaded intel: 4 fabricator locations 16931 | -3/Research | Learned Quarantine garrison access intel 16931 | -3/Research | Search patrols dispatched 16933 | -3/Research | Entered Testing 16935 | -3/Testing | Loaded intel: 11 terminal locations 16947 | -3/Testing | Found Prototype Device 16947 | -3/Testing | Identified Exp. Hardlight Generator 16954 | -3/Testing | Identified exit to Garrison 16986 | -3/Testing | Spotted PH-KUQMIDJODU 17045 | -3/Testing | Found Prototype Device 17170 | -3/Testing | Identified Exp. Focal Shield 17186 | -3/Testing | Found Prototype Device 17186 | -3/Testing | Identified 2N-1CE's Frost Array 17217 | -3/Testing | Found Prototype Protection 17217 | -3/Testing | Identified Med. Regenerative Plating 17246 | -3/Testing | Learned Research garrison access intel 17273 | -3/Testing | Found Prototype Device 17278 | -3/Testing | Learned location of 1 exit from Testing 17279 | -3/Testing | Learned Research recycling unit intel 17280 | -3/Testing | Learned Research stockpile data 17281 | -3/Testing | Learned 4 Quarantine zone layouts 17284 | -3/Testing | Learned 4 Quarantine zone layouts 17320 | -3/Testing | Found Prototype Energy Cannon 17468 | -3/Testing | Entered Garrison 17488 | -3/Garrison | Garrison Relay disabled 17562 | -3/Garrison | Spotted B-86 Titan 17562 | -3/Garrison | Spotted B-86 Titan 17576 | -3/Garrison | Triggered checkpoint 17600 | -3/Garrison | Triggered checkpoint 17609 | -3/Garrison | Garrison Relay disabled 17635 | -3/Garrison | Discovered exit to Research (range 15) 17638 | -3/Garrison | Attempted to access garrison exit controls, blocked by remote lockdown 17663 | -3/Garrison | Discovered exit to Research (range 44) 17663 | -3/Garrison | Discovered exit to Research (range 30) 17663 | -3/Garrison | Discovered exit to Research (range 19) 17671 | -3/Garrison | Garrison Relay disabled 17688 | -3/Garrison | Entered Research 17688 | -2/Research | Warlord forces began assault on 0b10 17688 | -2/Research | Evolved 2 slots: Propulsion x1, Utility x1 17689 | -2/Research | Identified exit to Access 17691 | -2/Research | Loaded intel: 5 recycling unit locations 17692 | -2/Research | Loaded intel: 4 garrison access locations 17713 | -2/Research | Distinguished unit "Cat Herders" dispatched to help 17713 | -2/Research | Distinguished unit "Death Star" dispatched to help 17754 | -2/Research | Discovered exit to Access (range 15) 17789 | -2/Research | Lost 9 allies 17798 | -2/Research | Research machine network offline 17804 | -2/Research | Found Fusion Bomb Launcher 17831 | -2/Research | Met up with Warlord 17864 | -2/Research | Discovered new exit (range 3) 17864 | -2/Research | Identified exit to Quarantine 17878 | -2/Research | Identified Exp. Thermal Defense Suite 17967 | -2/Research | Spotted 63-PWS(K) 18020 | -2/Research | Spotted Striker 18033 | -2/Research | Build established: Hacker-Ninja 18035 | -2/Research | Lost 6 allies 18046 | -2/Research | Discovered exit to Quarantine (range 10) 18095 | -2/Research | Spotted B-90 Cyclops 18140 | -2/Research | Found Exp. Signal Interpreter 18146 | -2/Research | Spotted Striker 18267 | -2/Research | Spotted B-90 Cyclops 18512 | -2/Research | Discovered exit to Access (range 8) 18650 | -2/Research | Build established: Hacker-Scout 18663 | -2/Research | Spotted B-90 Cyclops 18697 | -2/Research | Borebot progress halted 18722 | -2/Research | Warlord invited to help at Command 18722 | -2/Research | Given Cave Seal Controls access code 18725 | -2/Research | Entered Quarantine 18727 | -2/Quarantine | Identified exit to Section 7 18727 | -2/Quarantine | Identified exit to Protoforge 18729 | -2/Quarantine | Loaded intel: 60 non-interactive machine locations 18730 | -2/Quarantine | Loaded intel: 1 garrison access location 18769 | -2/Quarantine | Found Alien Energy Cannon 18806 | -2/Quarantine | Cryocooling Duct disabled 18821 | -2/Quarantine | Ambient heat levels rising (+20) 18821 | -2/Quarantine | Non-combat units ordered to evacuate 18859 | -2/Quarantine | Found Alien Artifact 18862 | -2/Quarantine | Identified Core Reset Matrix 18862 | -2/Quarantine | Central database locked down 18862 | -2/Quarantine | Identified Core Cannon 18889 | -2/Quarantine | Lost 3 allies 18914 | -2/Quarantine | Found Alien Artifact 18919 | -2/Quarantine | Found Alien Artifact 18952 | -2/Quarantine | Identified Dimensional Node Initializer 18952 | -2/Quarantine | Identified Hpw. Transdimensional Reconstructor 19003 | -2/Quarantine | Repaired Exp. Sensor Array 19010 | -2/Quarantine | Found Alien Artifact 19034 | -2/Quarantine | Found Prototype Processor 19037 | -2/Quarantine | Learned Research trap positions 19073 | -2/Quarantine | Identified Exp. Core Analyzer 19109 | -2/Quarantine | Learned Access emergency access door positions 19221 | -2/Quarantine | Learned 4 Research zone layouts 19258 | -2/Quarantine | Spotted Fortress 19261 | -2/Quarantine | Learned location of 2 exits from Research 19326 | -2/Quarantine | Learned location of 2 exits from Research 19371 | -2/Quarantine | Learned Access trap positions 19371 | -2/Quarantine | Entered Section 7 19378 | -2/Section 7 | Found Alien Artifact 19378 | -2/Section 7 | Identified Integrity Redistributor 19378 | -2/Section 7 | Used Integrity Redistributor, redistributed integrity from core (-28) 19398 | -2/Section 7 | Spotted S7 Guard 19470 | -2/Section 7 | Found Alien Artifact 19470 | -2/Section 7 | Identified Core Regenerator 19470 | -2/Section 7 | Used Core Regenerator, restored core integrity (+106) 19611 | -2/Section 7 | Initialized slip node 19698 | -2/Section 7 | Found Alien Artifact 19698 | -2/Section 7 | Identified Integrated Dissipator 19698 | -2/Section 7 | Installed Integrated Dissipator, increased core heat dissipation (+20) 19703 | -2/Section 7 | Spotted B-90 Cyclops 19729 | -2/Section 7 | Learned 4 Research zone layouts 19775 | -2/Section 7 | Discovered exit to Access (range 21) 19803 | -2/Section 7 | Learned Research emergency access door positions 19848 | -2/Section 7 | Spotted Alpha 7 19864 | -2/Section 7 | Spotted Executioner 19864 | -2/Section 7 | Spotted Executioner 19871 | -2/Section 7 | Search patrols dispatched 19873 | -2/Section 7 | Spotted B-99 Colossus 19886 | -2/Section 7 | Found Alien Artifact 19886 | -2/Section 7 | Identified Core Expander 19886 | -2/Section 7 | Installed Core Expander, added new Utility slot 19896 | -2/Section 7 | Found Alien Artifact 19896 | -2/Section 7 | Identified LRC Armor 19896 | -2/Section 7 | Installed LRC Armor, increased core integrity (+250) 19898 | -2/Section 7 | Found Alien Artifact 19898 | -2/Section 7 | Identified LRC Energy Well 19898 | -2/Section 7 | Installed LRC Energy Well, increased energy storage capacity (+250) 19920 | -2/Section 7 | Learned Research emergency access door positions 19931 | -2/Section 7 | Found Hpw. Transdimensional Reconstructor 19932 | -2/Section 7 | Found Alien Artifact 19949 | -2/Section 7 | Identified Transdimensional Reconstructor 19949 | -2/Section 7 | Warped through subspace to slip node 19961 | -2/Section 7 | Identified exit to Garrison 19961 | -2/Section 7 | Entered Garrison 20001 | -2/Garrison | Phase Generator disabled 20045 | -2/Garrison | Discovered exit to Access (range 82) 20045 | -2/Garrison | Discovered exit to Access (range 87) 20045 | -2/Garrison | Discovered exit to Access (range 44) 20054 | -2/Garrison | Found embedded Infiltrators 20080 | -2/Garrison | Garrison Relay disabled 20083 | -2/Garrison | Entered Access 20083 | -1/Access | Evolved 2 slots: Utility x2 20084 | -1/Access | Loaded intel: 78 trap records 20086 | -1/Access | Loaded intel: 4 repair station locations 20087 | -1/Access | Loaded intel: 4 recycling unit locations 20106 | -1/Access | Found Prototype Device 20106 | -1/Access | Identified Exp. EM Shield 20115 | -1/Access | Found Exp. EM Shield 20210 | -1/Access | Spotted B-99 Colossus 20276 | -1/Access | Lost 9 allies 20292 | -1/Access | Unchained authorized (GL-D0S) 20293 | -1/Access | Identified exit to Command 20293 | -1/Access | Adv. Hacking Suite fried by hacking feedback 20583 | -1/Access | First assault squad dispatched 20736 | -1/Access | Entered Command 20856 | -1/Command | Phase Generator disabled 21061 | -1/Command | Disengaged cave seal 21061 | -1/Command | Derelicts emerged from the dark tunnel 21061 | -1/Command | Welcomed Warlord to Command 21081 | -1/Command | Disengaged cave seal 21125 | -1/Command | Spotted B-99 Colossus 21142 | -1/Command | Found Vortex Chain Reactor 21187 | -1/Command | Lost 12 allies 21316 | -1/Command | Spotted Combat Programmer 21325 | -1/Command | Spotted M Guard 21325 | -1/Command | Spotted Combat Programmer 21325 | -1/Command | Spotted M Guard 21329 | -1/Command | Destroyed Combat Programmer 21350 | -1/Command | Warlord commented on Warlord statues 21357 | -1/Command | Combat Programmer assimilated allied Z4-Y6D(K) 21358 | -1/Command | Spotted Z4-Y6D(K) 21376 | -1/Command | Found Prototype Device 21376 | -1/Command | Identified Thermal Barrier 21387 | -1/Command | All MAIN.C guards destroyed 21410 | -1/Command | Met MAIN.C 21411 | -1/Command | Hacked MAIN.C using A7's code 21412 | -1/Command | Lost 4 allies 21427 | -1/Command | Found Exp. Melee Analysis Suite 21465 | -1/Command | 0b10 Conduit disabled 21493 | -1/Command | MAIN.C activated Command garrisons 21539 | -1/Command | Destroyed MAIN.C 21541 | *** | Establishing Free Derelict Territories! Last Messages --------------- 21532_ Blast Slug penetrates MAIN.C. 21532_ MAIN.C knocked back. 21532_ Beam penetrates MAIN.C. 21532_ Beam penetrates Reinforced Barrier. 21532_ Beam penetrates Earth. 21534_ Beam penetrates Reinforced Barrier. 21534_ Beam penetrates Earth. 21535_ Blast Slug penetrates MAIN.C. 21537_ Knocked back. 21538_ Acquired 6 matter. 21539_ Beam penetrates MAIN.C. 21539_ MAIN.C: "I hope you know you're still going to DIE HERE WITH ME!" 21539_ MAIN.C destroyed. ZY-L1N: Victory! Sure there's still lots to do, but without MAIN.C at the helm 0b10 doesn't stand a chance. We've got this... [Achievement: Warlord Forever!] Map ----- +----------------------------------------------------+ | ?????????????????????????????????????????????????? | | ?????????????????????????????????????????????????? | | ?????????????????????????????????????????????????? | | ?????????????????????????????????????????????????? | | ??????????????#################??????????????????? | | ??????????"""""" """" #??????????????????? | | ??????????" "" #??????????????????? | | ?????????????" "" #################### | | ????????#""""""""""" + | | ????????#" " " | | ????????#" + | | | ???????????? """""" ################### | | ???????????? """""" #?????????????????# | | ??????????" "" #?????????????????# | | ????????? " " #?????????????????# | | ??????????"""""""" """" #?????????????????#+ | | ??????????? """"" #?????????????????# | | ????????? " """ "" #?????????????????# | | ????????# " " " #??????????????? ?# | | ????????# " " " #???????????? ?## | | ????????" " " " """ #????????# " ????## | | ????????" """ " " " W#?????#; ;#?????# " | | ????????" " " #??# #????????#### | | ????????# """""""""" # ; #??????????????? | | ????????? ? """ " """ #########?????????? | | ????????????? """ " " @ $ ; ; ; ; | | ?????????????###########################?????????? | | ?????????????????????????????????????????????????? | | ?????????????????????????????????????????????????? | | ?????????????????????????????????????????????????? | | ?????????????????????????????????????????????????? | | ?????????????????????????????????????????????????? | | ?????????????????????????????????????????????????? | | ?????????????????????????????????????????????????? | | ?????????????????????????????????????????????????? | | ?????????????????????????????????????????????????? | | ?????????????????????????????????????????????????? | | ?????????????????????????????????????????????????? | | ?????????????????????????????????????????????????? | | ?????????????????????????????????????????????????? | | ?????????????????????????????????????????????????? | | ?????????????????????????????????????????????????? | | ?????????????????????????????????????????????????? | | ?????????????????????????????????????????????????? | | ?????????????????????????????????????????????????? | | ?????????????????????????????????????????????????? | | ?????????????????????????????????????????????????? | | ?????????????????????????????????????????????????? | | ?????????????????????????????????????????????????? | | ?????????????????????????????????????????????????? | +----------------------------------------------------+ Best States ------------- Heat Dissipation 172 Energy Generation 59 Energy Capacity 950 Matter Stores 300 Matter Capacity 300 Sight Range 23 Robot Scan Range 20 Terrain Scan Range 16 Terrain Scan Density 10 ECM Strength 3 Additional Mass Support 25 Corruption Block 15 Armor Coverage 225 Resistance: TH 50 Resistance: EM 75 Propulsion Shielding 90 Utility Shielding 66 Point Defense Rating 480 Phase Shifting 15 Evasion (%) 81 Melee Accuracy 12 Recoil Reduction 1 Offensive Hacking 42 Defensive Hacking 26 Authchip Count 2 Item Schematics ----------------- VTOL Module | -9/Materials | Scanalyzed Exp. Sensor Array | -8/Materials | Scanalyzed Cesium-ion Thruster | -8/Materials | Scanalyzed Surge Thruster | -7/Factory | Scanalyzed System Restoration Module | -7/Factory | Scanalyzed Adv. ECM Suite | -7/Factory | Scanalyzed Flexi-carbon Leg | -7/Factory | Hacked Imp. Surge Thruster | -7/Factory | Hacked Adv. Trap Extractor | -7/Factory | Hacked ECM Suite | -7/Factory | Scanalyzed Imp. Cooling System | -7/Factory | Scanalyzed Combat Drone Bay | -7/Data Miner | Free Lgt. Regenerative Plating | -7/Data Miner | Free Biomechanical Wings | -7/Data Miner | Free Exp. Targeting Computer | -7/Data Miner | Free Scatter Rocket Array | -7/Data Miner | Free Gyrokinetic Inverter | -7/Data Miner | Free Adv. System Shield | -7/Data Miner | Free Tesla Rifle | -7/Data Miner | Free Phase Cannon | -7/Data Miner | Free Imp. Coolant Injector | -7/Data Miner | Free KE Penetrator | -7/Data Miner | Free Rnf. Antimatter Reactor | -7/Data Miner | Free Field Propulsion Array | -7/Data Miner | Free Com. HERF Cannon | -5/Factory | Hacked Adv. Surge Thruster | -5/Factory | Hacked Imp. System Restoration Module | -5/Factory | Scanalyzed Imp. Utility Shielding | -5/Factory | Scanalyzed Exp. Propulsion Shielding | -5/Factory | Hacked Adv. Point Defense System | -5/Factory | Hacked Vortex Chain Reactor | -4/Factory | Scanalyzed Exp. Signal Interpreter | -4/Factory | Hacked Particle Accelerator | -4/Factory | Scanalyzed Adv. System Restoration Module | -4/Factory | Scanalyzed Stasis Canceller | -4/Factory | Scanalyzed Mass Driver | -4/Factory | Extracted Adv. Sensor Array | -4/Factory | Extracted EM Shield | -4/Factory | Extracted Lrn. Proton Cannon | -4/Factory | Extracted Remote Shield | -4/Factory | Extracted Exp. Melee Analysis Suite | -3/Research | Scanalyzed Impulse Thruster Array | -3/Research | Scanalyzed Exp. Power Amplifier | -3/Research | Scanalyzed Hds. Centrium Heavy Treads | -2/Quarantine | Archive Adv. Energy Well | -2/Quarantine | Archive Exp. Biometal Leg | -2/Quarantine | Archive Exp. Coolant Injector | -2/Quarantine | Archive Exp. Armor Integrity Analyzer | -2/Quarantine | Archive Cld. Impulse Thruster | -2/Quarantine | Archive Exp. Optical Array | -2/Quarantine | Archive Plasma Sword | -2/Quarantine | Archive Exp. Shield Generator | -2/Quarantine | Archive Robot Schematics ------------------ R-10 Processor | -7/Data Miner | Free G-47 Trooper | -7/Data Miner | Free Y-54 Guardian | -7/Data Miner | Free G-50 Soldier | -7/Data Miner | Free A-15 Conveyor | -7/Data Miner | Free X-72 Disruptor | -4/Factory | Hacked M-36 Artificer | -4/Factory | Downloaded D-83 Annihilator | -2/Quarantine | Archive T-07 Excavator | -2/Quarantine | Archive Fabricated ------------ Imp. Surge Thruster | x2 | -7/Factory | Authchip Imp. Surge Thruster | x2 | -7/Factory | Authchip Adv. ECM Suite | x2 | -7/Factory Lgt. Regenerative Plating | x1 | -5/Factory | Authchip Exp. Sensor Array | x1 | -5/Factory | Authchip Adv. Surge Thruster | x2 | -5/Factory | Authchip Adv. Surge Thruster | x2 | -5/Factory | Authchip Exp. Propulsion Shielding | x1 | -4/Factory | Authchip Exp. Signal Interpreter | x1 | -4/Factory Exp. Propulsion Shielding | x1 | -4/Factory | Authchip Exp. Sensor Array | x1 | -3/Research | Authchip Adv. Surge Thruster | x2 | -3/Research | Authchip Stasis Canceller | x2 | -3/Research | Authchip Repaired ---------- Hvy. Assault Rifle | 70% | -10/Materials Exp. Sensor Array | 62% | -8/Materials | Broken Cesium-ion Thruster | 36% | -8/Materials Cesium-ion Thruster | 60% | -8/Materials Imp. Utility Shielding | 30% | -8/Materials Lgt. Deuterium Engine | 20% | -8/Materials Surge Thruster | 11% | -7/Factory Minigun | 22% | -7/Factory Lgt. Ion Engine | 50% | -7/Factory Imp. Surge Thruster | 22% | -7/Factory Imp. Surge Thruster | 99% | -7/Factory | Broken Imp. Cesium-ion Thruster | 18% | -5/Factory Imp. Utility Shielding | 50% | -5/Factory Adv. Cooling System | 48% | -4/Factory | Broken Adv. Surge Thruster | 38% | -4/Factory Imp. Grenade Launcher | 21% | -4/Factory Exp. Propulsion Shielding | 55% | -4/Factory Imp. Cesium-ion Thruster | 46% | -4/Factory | Broken Adv. Cooling System | 18% | -4/Factory Exp. Propulsion Shielding | 38% | -3/Research Stasis Canceller | 23% | -3/Research Adv. Surge Thruster | 1% | -3/Research Adv. Surge Thruster | 22% | -3/Research Q-thruster | 5% | -3/Research Adv. ECM Suite | 50% | -3/Research Exp. Sensor Array | 55% | -2/Quarantine Studied --------- Flight Unit | -9/Materials | Hacked VTOL Module | -8/Materials | Hacked Cesium-ion Thruster | -8/Materials | Hacked Minigun | -8/Materials | Hacked Surge Thruster | -7/Factory | Hacked Lgt. Ion Engine | -7/Factory | Hacked Imp. Grenade Launcher | -7/Factory | Hacked Imp. Surge Thruster | -7/Factory | Hacked Lgt. Nuclear Core | -7/Factory | Hacked Lgt. Fission Core | -6/Factory | Hacked Adv. Surge Thruster | -5/Factory | Hacked Lgt. Antimatter Reactor | -5/Factory | Hacked Nuclear Pulse Array | -4/Factory | Hacked Impulse Thruster Array | -3/Research | Hacked Lgt. Particle Reactor | -3/Testing | Hacked Adv. Remote Datajack | -2/Quarantine | Hacked Alien Tech Used ----------------- Integrity Redistributor Core Regenerator Dimensional Node Initializer Integrated Dissipator Core Expander LRC Armor LRC Energy Well Transdimensional Reconstructor Core Cannon Achievements -------------- Betrayal Most Foul Better Safe Than Exploded Suspicious By Nature Warlord Forever! Challenges ------------ None Game ------ Seed BackupCannonActivator Manual? 0 Play Time 12:02:01 Cumulative 569.0 hours Start 2025.10.25 @ 11:42:13 End 2025.10.28 @ 18:34:27 Sessions 11 Manual Loads 0 Difficulty Rogue Special Mode None Game No. 240 Rogue 240 Adventurer 0 Explorer 0 Win Type 7 Total 41 Types 18/2/6/2/6/1/0/3/0/3 Lore% 96 Gallery% 87 Achievement% 69 Wizard Run 0 Options --------- Layout 1 ASCII 0 Keyboard 0 Movement Numpad Keybinds 0 Fullscreen 1 Font 24/Smallcaps Map View 50x35 Zoom Use 0% Tactical HUD 1 Map Filters NONE Filters NONE Steam 1 RUN: 4fc93bb8-3727-4a1c-8b7e-5e46a841db76